Workbook

Sheet Model
A1: Cells in blue font are user input parameters | AH1: Ratio Vfresh | AI1: 0.5 | AL1: r equivalent | AM1: =2.15*(1-rVFresh)+1*(rVFresh) -> 1.575 | AP1: Ratio wall thickness fresh | AQ1: 0.84 | AZ1: r equivalent | BA1: =2.15*(1-rVFresh)+0.4*(rVFresh) -> 1.275 | BC1: Ratio wall thickness fresh | BD1: 0.6819994094
A2: Cells with this background color are modified compared to VHK model | C2: Category 1 | R2: Category 8 | AG2: Category 7 | AZ2: Cat 7, Pantry + Freezer
C3: As listed in interim report VHK | H3: CECED modified | R3: As listed in interim report VHK | W3: CECED modified | AG3: As listed in interim report VHK | AL3: CECED modified | AZ3: CECED modified
C4: 1 | D4: 2 | E4: 3 | F4: 4 | H4: 1 | I4: 2 | J4: 3 | K4: 4 | M4: 4A | O4: 4B | R4: 1 | S4: 2 | T4: 3 | U4: 4 | W4: 1 | X4: 2 | Y4: 3 | Z4: 4 | AB4: 4A | AD4: 4B | AG4: 1 | AH4: 2 | AI4: 3 | AJ4: 4 | AL4: 1 | AM4: 2 | AN4: 3 | AO4: 4 | AZ4: 1 | BA4: 2 | BB4: 3 | BC4: 4
A5: V | B5: Refrigerated volume [m3] | C5: =(C16-2*C22)*(C17-2*C22)*(C18-C20-2*C22)-C21^2*C16 -> 0.041876712 | D5: =(D16-2*D22)*(D17-2*D22)*(D18-D20-2*D22)-D21^2*D16 -> 0.107351792 | E5: 0.183809984 | F5: 0.331488 | H5: =(H16-2*H22)*(H17-2*H22)*(H18-H20-2*H22)-H21^2*(H16-2*H22) -> 0.044756712 | I5: =(I16-2*I22)*(I17-2*I22)*(I18-I20-2*I22)-I21^2*(I16-2*I22) -> 0.110631792 | J5: 0.194625 | K5: 0.354521 | M5: =(M16-2*M22)*(M17-2*M22)*(M18-M20-2*M22)-M21^2*(M16-2*M22) -> 0.337088 | O5: 0.297206726 | R5: =(R16-2*R22)*(R17-2*R22)*(R18-R20-2*R22)-R21^2*R16 -> 0.082 | S5: =(S16-2*S22)*(S17-2*S22)*(S18-S20-2*S22)-S21^2*S16 -> 0.110793 | T5: 0.225812 | U5: 0.354996 | W5: =(W16-2*W22)*(W17-2*W22)*(W18-W20-2*W22)-W21^2*(W16-2*W22) -> 0.088 | X5: =(X16-2*X22)*(X17-2*X22)*(X18-X20-2*X22)-X21^2*(X16-2*X22) -> 0.117993 | Y5: 0.264 | Z5: 0.4425 | AB5: =(AB16-2*AB22)*(AB17-2*AB22)*(AB18-AB20-2*AB22)-AB21^2*(AB16-2*AB22) -> 0.364596 | AD5: =(AD16-2*AD22)*(AD17-2*AD22)*(AD18-AD20-2*AD22)-AD21^2*(AD16-2*AD22) -> 0.3990211187 | AG5: =(AG16-2*AG22)*(AG17-2*AG22)*(AG18-AG20-2*AG22)-AG21^2*AG16-(AG16-2*AG22)*(AG17-2*AG22)*AG22 -> 0.168696 | AH5: =(AH16-2*AH22)*(AH17-2*AH22)*(AH18-AH20-2*AH22)-AH21^2*AH16-(AH16-2*AH22)*(AH17-2*AH22)*AH22 -> 0.199382 | AI5: 0.344184 | AJ5: 0.6605905 | AL5: =(AL16-2*AL22)*(AL17-2*AL22)*(AL18-AL20-2*AL22)-AL21^2*(AL16-2*AL22)-(AL16-2*AL22)*(AL17-2*AL22)*AL22 -> 0.173096 | AM5: =(AM16-2*AM22)*(AM17-2*AM22)*(AM18-AM20-2*AM22)-AM21^2*(AM16-2*AM22)-(AM16-2*AM22)*(AM17-2*AM22)*AM22 -> 0.217623 | AN5: 0.349784 | AO5: 0.538944 | AZ5: =(AZ16-2*AZ22)*(AZ17-2*AZ22)*(AZ18-AZ20-2*AZ22)-AZ21^2*(AZ16-2*AZ22)-(AZ16-2*AZ22)*(AZ17-2*AZ22)*AZ22 -> 0.173096 | BA5: =(BA16-2*BA22)*(BA17-2*BA22)*(BA18-BA20-2*BA22)-BA21^2*(BA16-2*BA22)-(BA16-2*BA22)*(BA17-2*BA22)*BA22 -> 0.217623 | BB5: 0.349784 | BC5: 0.538944
B6: Refrigerated volume [dm3] | C6: =C5*1000 -> 41.876712 | D6: =D5*1000 -> 107.351792 | E6: 183.809984 | F6: 331.488 | H6: =H5*1000 -> 44.756712 | I6: =I5*1000 -> 110.631792 | J6: =J5*1000 -> 194.625 | K6: =K5*1000 -> 354.521 | M6: 337.088 | N6: =(M6-K6)/K6 -> -0.0491733917 | O6: =O5*1000 -> 297.206726 | P6: =(O6-K6)/K6 -> -0.1616667954 | R6: =R5*1000 -> 82 | S6: =S5*1000 -> 110.793 | T6: =T5*1000 -> 225.812 | U6: =U5*1000 -> 354.996 | W6: =W5*1000 -> 88 | X6: =X5*1000 -> 117.993 | Y6: 264 | Z6: 442.5 | AB6: =AB5*1000 -> 364.596 | AC6: =(AB6-Z6)/Z6 -> -0.1760542373 | AD6: =AD5*1000 -> 399.0211187 | AE6: =(AD6-Z6)/Z6 -> -0.09825735885 | AG6: =AG5*1000 -> 168.696 | AH6: =AH5*1000 -> 199.382 | AI6: =AI5*1000 -> 344.184 | AJ6: =AJ5*1000 -> 660.5905 | AL6: =AL5*1000 -> 173.096 | AM6: =AM5*1000 -> 217.623 | AN6: 349.784 | AO6: 538.944 | AZ6: =AZ5*1000 -> 173.096 | BA6: =BA5*1000 -> 217.623 | BB6: 349.784 | BC6: 538.944
B7: Volume separator [m3] | AL7: =(AL16-2*AL22)*(AL17-2*AL22)*AL22 -> 0.010648 | AM7: =(AM16-2*AM22)*(AM17-2*AM22)*AM22 -> 0.011094 | AN7: 0.014812 | AO7: 0.021952 | AZ7: =(AZ16-2*AZ22)*(AZ17-2*AZ22)*AZ22 -> 0.010648 | BA7: =(BA16-2*BA22)*(BA17-2*BA22)*BA22 -> 0.011094 | BB7: 0.014812 | BC7: 0.021952
B8: Volume fresh food [m3] | AL8: =(AL16-2*AL22)*(AL17-2*AL22)*(AL18-AL22-AL19)-0.5*AL7 -> 0.08654810118 | AM8: =(AM16-2*AM22)*(AM17-2*AM22)*(AM18-AM22-AM19)-0.5*AM7 -> 0.1088116158 | AN8: 0.1748921667 | AO8: 0.2694722476 | AZ8: =(AZ16-2*AZ22)*(AZ17-2*AZ22)*(AZ18-AZ22-AZ19)-0.5*AZ7 -> 0.1263601412 | BA8: =(BA16-2*BA22)*(BA17-2*BA22)*(BA18-BA22-BA19)-0.5*BA7 -> 0.1588648598 | BB8: 0.2553424208 | BC8: 0.39342927
B9: Volume frozen food [m3] | AL9: =(AL16-2*AL22)*(AL17-2*AL22)*(AL19-AL20-AL22)-AL21^2*(AL16-2*AL22)-AL7*0.5 -> 0.08654789882 | AM9: =(AM16-2*AM22)*(AM17-2*AM22)*(AM19-AM20-AM22)-AM21^2*(AM16-2*AM22)-AM7*0.5 -> 0.1088113842 | AN9: 0.1748918333 | AO9: 0.2694717524 | AZ9: =(AZ16-2*AZ22)*(AZ17-2*AZ22)*(AZ19-AZ20-AZ22)-AZ21^2*(AZ16-2*AZ22)-AZ7*0.5 -> 0.04673585879 | BA9: =(BA16-2*BA22)*(BA17-2*BA22)*(BA19-BA20-BA22)-BA21^2*(BA16-2*BA22)-BA7*0.5 -> 0.05875814021 | BB9: 0.09444157921 | BC9: 0.14551473
B10: Ratio fresh/total [-] | AL10: =AL8/AL5 -> 0.5000005845 | AM10: =AM8/AM5 -> 0.5000005323 | AN10: 0.5000004765 | AO10: 0.5000004594 | AQ10: =(AL10-rVFresh)^2+(AM10-rVFresh)^2+(AN10-rVFresh)^2+(AO10-rVFresh)^2 -> 1.063195085e-12 | AR10: Run solver to set all fresh food volume ratio's | AZ10: =AZ8/AZ5 -> 0.7300003536 | BA10: =BA8/BA5 -> 0.7300003207 | BB10: 0.7300002881 | BC10: 0.7300002783
A11: A | B11: Refrigerated envelope surface [m2] | C11: =2*((C16-C22)*(C17-C22)+(C18-C22-C20)*(C17-C22)-(C21+0.5*C22)^2+(C16-C22)*(C18-C22-C20)) -> 1.000368 | D11: =2*((D16-D22)*(D17-D22)+(D18-D22-D20)*(D17-D22)-(D21+0.5*D22)^2+(D16-D22)*(D18-D22-D20)) -> 1.7200855 | E11: 2.5722495 | F11: 4.16135 | H11: =2*((H16-H22)*(H17-H22)+(H18-H22-H20)*(H17-H22)-(H21)^2+(H16-H22)*(H18-H22-H20)) -> 1.015416 | I11: =2*((I16-I22)*(I17-I22)+(I18-I22-I20)*(I17-I22)-(I21)^2+(I16-I22)*(I18-I22-I20)) -> 1.737326 | J11: 2.62 | K11: 4.24815 | M11: =2*((M16-M22)*(M17-M22)+(M18-M22-M20)*(M17-M22)-(M21)^2+(M16-M22)*(M18-M22-M20)) -> 4.1918 | O11: 4.057254062 | R11: =2*((R16-R22)*(R17-R22)+(R18-R22-R20)*(R17-R22)-(R21+0.5*R22)^2+(R16-R22)*(R18-R22-R20)) -> 1.7159375 | S11: =2*((S16-S22)*(S17-S22)+(S18-S22-S20)*(S17-S22)-(S21+0.5*S22)^2+(S16-S22)*(S18-S22-S20)) -> 2.25355 | T11: 3.95655 | U11: 5.0152 | W11: =2*((W16-W22)*(W17-W22)+(W18-W22-W20)*(W17-W22)-(W21)^2+(W16-W22)*(W18-W22-W20)) -> 1.74875 | X11: =2*((X16-X22)*(X17-X22)+(X18-X22-X20)*(X17-X22)-(X21)^2+(X16-X22)*(X18-X22-X20)) -> 2.2936 | Y11: 4.12 | Z11: 5.32 | AB11: =2*((AB16-AB22)*(AB17-AB22)+(AB18-AB22-AB20)*(AB17-AB22)-(AB21)^2+(AB16-AB22)*(AB18-AB22-AB20)) -> 5.0704 | AD11: =2*((AD16-AD22)*(AD17-AD22)+(AD18-AD22-AD20)*(AD17-AD22)-(AD21)^2+(AD16-AD22)*(AD18-AD22-AD20)) -> 5.183646555 | AG11: 3.045 | AH11: 3.52 | AI11: 4.999 | AJ11: 7.404 | AL11: =2*((AL16-AL22)*(AL17-AL22)+(AL18-AL22-AL20)*(AL17-AL22)-(AL21)^2+(AL16-AL22)*(AL18-AL22-AL20)) -> 2.57815 | AM11: =(2*(AM16-AM22)*(AM17-AM22)+2*((AM18-AM22-AM20)*(AM17-AM22)-(AM21)^2)+2*(AM16-AM22)*(AM18-AM22-AM20)) -> 3.1246 | AN11: =2*((AN16-AN22)*(AN17-AN22)+(AN18-AN22-AN20)*(AN17-AN22)-(AN21)^2+(AN16-AN22)*(AN18-AN22-AN20)) -> 4.4674 | AO11: 5.5774 | AZ11: =2*((AZ16-AZ22)*(AZ17-AZ22)+(AZ18-AZ22-AZ20)*(AZ17-AZ22)-(AZ21)^2+(AZ16-AZ22)*(AZ18-AZ22-AZ20)) -> 2.57815 | BA11: =(2*(BA16-BA22)*(BA17-BA22)+2*((BA18-BA22-BA20)*(BA17-BA22)-(BA21)^2)+2*(BA16-BA22)*(BA18-BA22-BA20)) -> 3.1246 | BB11: =2*((BB16-BB22)*(BB17-BB22)+(BB18-BB22-BB20)*(BB17-BB22)-(BB21)^2+(BB16-BB22)*(BB18-BB22-BB20)) -> 4.4674 | BC11: 5.5774
B12: Area fresh food [m2] | AL12: =((AL16-AL22)*(AL17-AL22)+2*((AL18-0.5*AL22-AL19)*(AL17-AL22))+2*(AL16-AL22)*(AL18-0.5*AL22-AL19)) -> 1.239076035 | AM12: =((AM16-AM22)*(AM17-AM22)+2*((AM18-0.5*AM22-AM19)*(AM17-AM22))+2*(AM16-AM22)*(AM18-0.5*AM22-AM19)) -> 1.511138437 | AN12: 2.181527757 | AO12: 2.73870199 | AZ12: =((AZ16-AZ22)*(AZ17-AZ22)+2*((AZ18-0.5*AZ22-AZ19)*(AZ17-AZ22))+2*(AZ16-AZ22)*(AZ18-0.5*AZ22-AZ19)) -> 1.646244626 | BA12: =((BA16-BA22)*(BA17-BA22)+2*((BA18-0.5*BA22-BA19)*(BA17-BA22))+2*(BA16-BA22)*(BA18-0.5*BA22-BA19)) -> 2.041719065 | BB12: 2.987551097 | BC12: 3.734785205
B13: Area frozen food [m2] | AL13: =(AL16-AL22)*(AL17-AL22)+2*((AL19-0.5*AL22-AL20)*(AL17-AL22)-(AL21)^2)+2*(AL16-AL22)*(AL19-0.5*AL22-AL20) -> 1.339073965 | AM13: =(AM16-AM22)*(AM17-AM22)+2*((AM19-0.5*AM22-AM20)*(AM17-AM22)-(AM21)^2)+2*(AM16-AM22)*(AM19-0.5*AM22-AM20) -> 1.613461563 | AN13: 2.285872243 | AO13: 2.83869801 | AZ13: =(AZ16-AZ22)*(AZ17-AZ22)+2*((AZ19-0.5*AZ22-AZ20)*(AZ17-AZ22)-(AZ21)^2)+2*(AZ16-AZ22)*(AZ19-0.5*AZ22-AZ20) -> 0.931905374 | BA13: =(BA16-BA22)*(BA17-BA22)+2*((BA19-0.5*BA22-BA20)*(BA17-BA22)-(BA21)^2)+2*(BA16-BA22)*(BA19-0.5*BA22-BA20) -> 1.082880935 | BB13: 1.479848903 | BC13: 1.842614795
A14: Acd | B14: Condenser Area [m2] | C14: =C16*(C18-C20-C21) -> 0.1215 | D14: =D16*(D18-D20-D21) -> 0.286 | E14: 0.5225 | F14: 0.972 | H14: =H16*(H18-H20-H21) -> 0.1215 | I14: =I16*(I18-I20-I21) -> 0.286 | J14: 0.5225 | K14: 0.972 | M14: =M16*(M18-M20-M21) -> 0.972 | O14: 0.972 | R14: =R16*(R18-R20-R21) -> 0.33 | S14: =S16*(S18-S20-S21) -> 0.5225 | T14: 1.05 | U14: 1.295 | W14: =W16*(W18-W20-W21) -> 0.33 | X14: =X16*(X18-X20-X21) -> 0.5225 | Y14: 1.05 | Z14: 1.295 | AB14: =AB16*(AB18-AB20-AB21) -> 1.295 | AD14: =AD16*(AD18-AD20-AD21) -> 1.295 | AG14: =AG16*(AG18-AG20-AG21) -> 0.5225 | AH14: =AH16*(AH18-AH20-AH21) -> 0.6875 | AI14: 1.05 | AJ14: 1.44 | AL14: =AL16*(AL18-AL20-AL21) -> 0.5225 | AM14: =AM16*(AM18-AM20-AM21) -> 0.6875 | AN14: 1.05 | AO14: 1.26 | AZ14: =AZ16*(AZ18-AZ20-AZ21) -> 0.5225 | BA14: =BA16*(BA18-BA20-BA21) -> 0.6875 | BB14: 1.05 | BC14: 1.26
A15: Ldr | B15: Door perimeter length [m] | C15: =2*(C16+(C18-C20)) -> 1.84 | D15: =2*(D16+(D18-D20)) -> 2.54 | E15: 3.4 | F15: 4.84 | H15: =2*(H16+(H18-H20)) -> 1.84 | I15: =2*(I16+(I18-I20)) -> 2.54 | J15: =2*(J16+(J18-J20)) -> 3.4 | K15: =2*(K16+(K18-K20)) -> 4.84 | M15: 4.84 | O15: =2*(O16+(O18-O20)) -> 4.84 | R15: =2*(R16+(R18-R20)) -> 2.7 | S15: =2*(S16+(S18-S20)) -> 3.4 | T15: =2*(T16+(T18-T20)) -> 5.1 | U15: =2*(U16+(U18-U20)) -> 5.5 | W15: =2*(W16+(W18-W20)) -> 2.7 | X15: =2*(X16+(X18-X20)) -> 3.4 | Y15: =2*(Y16+(Y18-Y20)) -> 5.1 | Z15: =2*(Z16+(Z18-Z20)) -> 5.5 | AB15: 5.5 | AD15: =2*(AD16+(AD18-AD20)) -> 5.5 | AG15: =2*(AG16+(AG18-AG20))+2*AG16 -> 4.5 | AH15: =2*(AH16+(AH18-AH20))+2*AH16 -> 5.1 | AI15: 6.3 | AJ15: 7.2 | AL15: =2*(AL16+(AL18-AL20))+2*AL16 -> 4.5 | AM15: =2*(AM16+(AM18-AM20))+2*AM16 -> 5.1 | AN15: =2*(AN16+(AN18-AN20))+2*AN16 -> 6.3 | AO15: =2*(AO16+(AO18-AO20))+2*AO16 -> 6.8 | AZ15: =2*(AZ16+(AZ18-AZ20))+2*AZ16 -> 4.5 | BA15: =2*(BA16+(BA18-BA20))+2*BA16 -> 5.1 | BB15: 6.3 | BC15: 6.8
A16: w | B16: width [m] | C16: 0.45 | D16: 0.52 | E16: 0.55 | F16: 0.6 | H16: 0.45 | I16: 0.52 | J16: 0.55 | K16: 0.6 | M16: 0.6 | O16: 0.6 | R16: 0.55 | S16: 0.55 | T16: 0.6 | U16: 0.7 | W16: 0.55 | X16: 0.55 | Y16: 0.6 | Z16: 0.7 | AB16: 0.7 | AD16: 0.7 | AG16: 0.55 | AH16: 0.55 | AI16: 0.6 | AJ16: 0.8 | AL16: 0.55 | AM16: 0.55 | AN16: 0.6 | AO16: 0.7 | AZ16: 0.55 | BA16: 0.55 | BB16: 0.6 | BC16: 0.7
A17: d | B17: depth [m] | C17: 0.47 | D17: 0.52 | E17: 0.55 | F17: 0.6 | H17: 0.47 | I17: 0.52 | J17: 0.55 | K17: 0.6 | M17: 0.6 | O17: 0.6 | R17: 0.55 | S17: 0.55 | T17: 0.6 | U17: 0.7 | W17: 0.55 | X17: 0.55 | Y17: 0.6 | Z17: 0.7 | AB17: 0.7 | AD17: 0.7 | AG17: 0.55 | AH17: 0.55 | AI17: 0.6 | AJ17: 0.8 | AL17: 0.55 | AM17: 0.55 | AN17: 0.6 | AO17: 0.7 | AZ17: 0.55 | BA17: 0.55 | BB17: 0.6 | BC17: 0.7
A18: h | B18: height [m] | C18: 0.52 | D18: 0.8 | E18: 1.2 | F18: 1.87 | H18: 0.52 | I18: 0.8 | J18: 1.2 | K18: 1.87 | M18: 1.87 | O18: 1.87 | R18: 0.85 | S18: 1.2 | T18: 2 | U18: 2.1 | W18: 0.85 | X18: 1.2 | Y18: 2 | Z18: 2.1 | AB18: 2.1 | AD18: 2.1 | AG18: 1.2 | AH18: 1.5 | AI18: 2 | AJ18: 2.05 | AL18: 1.2 | AM18: 1.5 | AN18: 2 | AO18: 2.05 | AZ18: 1.2 | BA18: 1.5 | BB18: 2 | BC18: 2.05
A19: hs | B19: height level separator (mid position) [m] | AL19: 0.6704540228 | AM19: 0.8215110014 | AN19: 1.068477473 | AO19: 1.085713496 | AZ19: 0.4648133202 | BA19: 0.5508065993 | BB19: 0.6882777845 | BC19: 0.6904423789
A20: a | B20: air passage height below unit [m] | C20: 0.05 | D20: 0.05 | E20: 0.05 | F20: 0.05 | H20: 0.05 | I20: 0.05 | J20: 0.05 | K20: 0.05 | M20: 0.05 | O20: 0.05 | R20: 0.05 | S20: 0.05 | T20: 0.05 | U20: 0.05 | W20: 0.05 | X20: 0.05 | Y20: 0.05 | Z20: 0.05 | AB20: 0.05 | AD20: 0.05 | AG20: 0.05 | AH20: 0.05 | AI20: 0.05 | AJ20: 0.05 | AL20: 0.05 | AM20: 0.05 | AN20: 0.05 | AO20: 0.05 | AZ20: 0.05 | BA20: 0.05 | BB20: 0.05 | BC20: 0.05
A21: b | B21: height and depth compressor area [m] | C21: 0.2 | D21: 0.2 | E21: 0.2 | F21: 0.2 | H21: 0.2 | I21: 0.2 | J21: 0.2 | K21: 0.2 | M21: 0.2 | O21: 0.2 | R21: 0.2 | S21: 0.2 | T21: 0.2 | U21: 0.2 | W21: 0.2 | X21: 0.2 | Y21: 0.2 | Z21: 0.2 | AB21: 0.2 | AD21: 0.2 | AG21: 0.2 | AH21: 0.2 | AI21: 0.2 | AJ21: 0.2 | AL21: 0.2 | AM21: 0.2 | AN21: 0.2 | AO21: 0.2 | AZ21: 0.2 | BA21: 0.2 | BB21: 0.2 | BC21: 0.2
A22: t | B22: average wall thickness [m] | C22: 0.036 | D22: 0.041 | E22: 0.053 | F22: 0.07 | H22: 0.036 | I22: 0.041 | J22: 0.05 | K22: 0.065 | M22: 0.07 | O22: 0.08204776061 | R22: 0.075 | S22: 0.09 | T22: 0.11 | U22: 0.12 | W22: 0.075 | X22: 0.09 | Y22: 0.1 | Z22: 0.1 | AB22: 0.12 | AD22: 0.1108780505 | AG22: 0.055 | AH22: 0.065 | AI22: 0.07 | AJ22: 0.085 | AL22: 0.055 | AM22: 0.06 | AN22: 0.07 | AO22: 0.07 | AZ22: 0.055 | BA22: 0.06 | BB22: 0.07 | BC22: 0.07
A23: t | B23: average wall thickness from data base [m] | C23: =(12.717*C5+1.4858)/100 -> 0.02018346147 | D23: =(12.717*D5+1.4858)/100 -> 0.02850992739 | E23: 0.03823311567 | F23: 0.05701332896 | H23: =(12.717*H5+1.4858)/100 -> 0.02054971107 | I23: =(12.717*I5+1.4858)/100 -> 0.02892704499 | J23: 0.03960846125 | K23: 0.05994243557 | R23: =(19.791*R5+3.9023)/100 -> 0.05525162 | S23: =(19.791*S5+3.9023)/100 -> 0.06095004263 | T23: 0.08371345292 | U23: 0.1092802584 | W23: =(19.791*W5+3.9023)/100 -> 0.05643908 | X23: =(19.791*X5+3.9023)/100 -> 0.06237499463 | Y23: 0.09127124 | Z23: 0.126598175 | AB23: =(19.791*AB5+3.9023)/100 -> 0.1111801944 | AD23: =(19.791*AD5+3.9023)/100 -> 0.1179932696 | AG23: =(8.477*AG5+3.0361)/100 -> 0.04466135992 | AH23: =(8.477*AH5+3.0361)/100 -> 0.04726261214 | AI23: 0.05953747768 | AJ23: 0.08635925668 | AL23: =(8.477*AL5+3.0361)/100 -> 0.04503434792 | AM23: =(8.477*AM5+3.0361)/100 -> 0.04880890171 | AN23: 0.06001218968 | AO23: 0.07604728288 | AZ23: =(8.477*AZ5+3.0361)/100 -> 0.04503434792 | BA23: =(8.477*BA5+3.0361)/100 -> 0.04880890171 | BB23: 0.06001218968 | BC23: 0.07604728288
B24: wall thickness fresh food [m] | AL24: =rtWall*AL22 -> 0.0462 | AM24: =rtWall*AM22 -> 0.0504 | AN24: =rtWall*AN22 -> 0.0588 | AO24: =rtWall*AO22 -> 0.0588 | AZ24: =$BD$1*AZ22 -> 0.03750996752 | BA24: =$BD$1*BA22 -> 0.04091996457 | BB24: 0.04773995866 | BC24: 0.04773995866
B25: wall thickness frozen food [m] | AL25: =(AL11*AL22-AL12*AL24)/AL13 -> 0.06314284303 | AM25: =(AM11*AM22-AM12*AM24)/AM13 -> 0.06899118351 | AN25: 0.08068874735 | AO25: 0.08080546862 | AZ25: =(AZ11*AZ22-AZ12*AZ24)/AZ13 -> 0.08589677642 | BA25: =(BA11*BA22-BA12*BA24)/BA13 -> 0.09597447408 | BB25: 0.1149390548 | BC25: 0.1151187483
A26: Tc | B26: compartment temperature [C] | C26: 5 | D26: 5 | E26: 5 | F26: 5 | H26: 5 | I26: 5 | J26: 5 | K26: 5 | M26: 5 | O26: 5 | R26: -20 | S26: -20 | T26: -20 | U26: -20 | W26: -20 | X26: -20 | Y26: -20 | Z26: -20 | AB26: -20 | AD26: -20 | AG26: =rVFresh*4+(1-rVFresh)*(-20) -> -8 | AH26: =rVFresh*4+(1-rVFresh)*(-20) -> -8 | AI26: =rVFresh*4+(1-rVFresh)*(-20) -> -8 | AJ26: =rVFresh*4+(1-rVFresh)*(-20) -> -8 | AL26: =AL29-AL32/(AL31*AL11) -> -6.801594208 | AM26: =AM29-AM32/(AM31*AM11) -> -6.723422913 | AN26: -6.602067581 | AO26: -6.5320336 | AZ26: =AZ29-AZ32/(AZ31*AZ11) -> 7.094756636 | BA26: =BA29-BA32/(BA31*BA11) -> 7.585312986 | BB26: 8.077158315 | BC26: 8.105139529
AL27: 5 | AM27: =AL27 -> 5 | AN27: =AL27 -> 5 | AO27: =AL27 -> 5 | AZ27: 17 | BA27: =AZ27 -> 17 | BB27: =AZ27 -> 17 | BC27: =AZ27 -> 17
AL28: -20 | AM28: -20 | AN28: -20 | AO28: -20 | AZ28: -20 | BA28: -20 | BB28: -20 | BC28: -20
A29: Ta | B29: ambient temperature [C] | C29: 25 | D29: 25 | E29: 25 | F29: 25 | H29: 25 | I29: 25 | J29: 25 | K29: 25 | M29: 25 | O29: 25 | R29: 25 | S29: 25 | T29: 25 | U29: 25 | W29: 25 | X29: 25 | Y29: 25 | Z29: 25 | AB29: 25 | AD29: 25 | AG29: 25 | AH29: 25 | AI29: 25 | AJ29: 25 | AL29: 25 | AM29: 25 | AN29: 25 | AO29: 25 | AZ29: 25 | BA29: 25 | BB29: 25 | BC29: 25
A30: k | B30: heat conductivity wall [W/m/K] | C30: 0.02 | D30: 0.02 | E30: 0.02 | F30: 0.02 | H30: 0.02 | I30: 0.02 | J30: 0.02 | K30: 0.02 | M30: 0.02 | O30: 0.02 | R30: 0.02 | S30: 0.02 | T30: 0.02 | U30: 0.02 | W30: 0.02 | X30: 0.02 | Y30: 0.02 | Z30: 0.02 | AB30: 0.02 | AD30: 0.02 | AG30: 0.02 | AH30: 0.02 | AI30: 0.02 | AJ30: 0.02 | AL30: 0.02 | AM30: 0.02 | AN30: 0.02 | AO30: 0.02 | AZ30: 0.02 | BA30: 0.02 | BB30: 0.02 | BC30: 0.02
A31: U wall | B31: heat transfer coefficient [W/m2/K] | C31: =C30/C22 -> 0.5555555556 | D31: =D30/D22 -> 0.487804878 | E31: 0.3773584906 | F31: 0.2857142857 | H31: =H30/H22 -> 0.5555555556 | I31: =I30/I22 -> 0.487804878 | J31: =J30/J22 -> 0.4 | K31: =K30/K22 -> 0.3076923077 | M31: 0.2857142857 | O31: =O30/O22 -> 0.2437604616 | R31: =R30/R22 -> 0.2666666667 | S31: =S30/S22 -> 0.2222222222 | T31: =T30/T22 -> 0.1818181818 | U31: =U30/U22 -> 0.1666666667 | W31: =W30/W22 -> 0.2666666667 | X31: =X30/X22 -> 0.2222222222 | Y31: =Y30/Y22 -> 0.2 | Z31: =Z30/Z22 -> 0.2 | AB31: 0.1666666667 | AD31: =AD30/AD22 -> 0.1803783518 | AG31: =AG30/AG22 -> 0.3636363636 | AH31: =AH30/AH22 -> 0.3076923077 | AI31: =AI30/AI22 -> 0.2857142857 | AJ31: =AJ30/AJ22 -> 0.2352941176 | AL31: =AL30/AL22 -> 0.3636363636 | AM31: =AM30/AM22 -> 0.3333333333 | AN31: 0.2857142857 | AO31: 0.2857142857 | AZ31: =AZ30/AZ22 -> 0.3636363636 | BA31: =BA30/BA22 -> 0.3333333333 | BB31: 0.2857142857 | BC31: 0.2857142857
A32: Ptrans | B32: transmission heat loss [W] | C32: =C11*C31*(C29-C26) -> 11.1152 | D32: =D11*D31*(D29-D26) -> 16.78132195 | E32: 19.41320377 | F32: 23.77914286 | H32: =H11*H31*(H29-H26) -> 11.2824 | I32: =I11*I31*(I29-I26) -> 16.94952195 | J32: =J11*J31*(J29-J26) -> 20.96 | K32: =K11*K31*(K29-K26) -> 26.14246154 | M32: 23.95314286 | O32: =O11*O31*(O29-O26) -> 19.77996246 | R32: =R11*R31*(R29-R26) -> 20.59125 | S32: =S11*S31*(S29-S26) -> 22.5355 | T32: =T11*T31*(T29-T26) -> 32.37177273 | U32: =U11*U31*(U29-U26) -> 37.614 | W32: =W11*W31*(W29-W26) -> 20.985 | X32: =X11*X31*(X29-X26) -> 22.936 | Y32: =Y11*Y31*(Y29-Y26) -> 37.08 | Z32: =Z11*Z31*(Z29-Z26) -> 47.88 | AB32: 38.028 | AD32: =AD11*AD31*(AD29-AD26) -> 42.07579298 | AG32: =AG11*AG31*(AG29-AG26) -> 36.54 | AH32: =AH11*AH31*(AH29-AH26) -> 35.74153846 | AI32: =AI11*AI31*(AI29-AI26) -> 47.13342857 | AJ32: =AJ11*AJ31*(AJ29-AJ26) -> 57.48988235 | AL32: =AL12*AL30/AL24*(AL29-AL27)+AL13*AL30/AL25*(AL29-AL28) -> 29.81428368 | AM32: =AM12*AM30/AM24*(AM29-AM27)+AM13*AM30/AM25*(AM29-AM28) -> 33.04100241 | AN32: =AN12*AN30/AN24*(AN29-AN27)+AN13*AN30/AN25*(AN29-AN28) -> 40.33687906 | AO32: =AO12*AO30/AO24*(AO29-AO27)+AO13*AO30/AO25*(AO29-AO28) -> 50.24764691 | AZ32: =AZ12*AZ30/AZ24*(AZ29-AZ27)+AZ13*AZ30/AZ25*(AZ29-AZ28) -> 16.78632843 | BA32: =BA12*BA30/BA24*(BA29-BA27)+BA13*BA30/BA25*(BA29-BA28) -> 18.13797701 | BB32: =BB12*BB30/BB24*(BB29-BB27)+BB13*BB30/BB25*(BB29-BB28) -> 21.60031513 | BC32: =BC12*BC30/BC24*(BC29-BC27)+BC13*BC30/BC25*(BC29-BC28) -> 26.92268423
A33: Udoor | B33: heat transfer coeff. door gasket [W/mK] | C33: 0.08 | D33: 0.08 | E33: 0.08 | F33: 0.08 | H33: 0.08 | I33: 0.08 | J33: 0.08 | K33: 0.08 | M33: 0.08 | O33: 0.08 | R33: 0.03 | S33: 0.03 | T33: 0.03 | U33: 0.03 | W33: 0.03 | X33: 0.03 | Y33: 0.03 | Z33: 0.03 | AB33: 0.03 | AD33: 0.03 | AG33: 0.07 | AH33: 0.0675 | AI33: 0.0675 | AJ33: 0.0675 | AL33: 0.07 | AM33: 0.0675 | AN33: 0.0675 | AO33: 0.0675 | AZ33: 0.07 | BA33: 0.0675 | BB33: 0.0675 | BC33: 0.0675
A34: Pdoor | B34: door heat loss [W] | C34: =C33*C15*(C29-C26) -> 2.944 | D34: =D33*D15*(D29-D26) -> 4.064 | E34: 5.44 | F34: 7.744 | H34: =H33*H15*(H29-H26) -> 2.944 | I34: =I33*I15*(I29-I26) -> 4.064 | J34: =J33*J15*(J29-J26) -> 5.44 | K34: =K33*K15*(K29-K26) -> 7.744 | M34: 7.744 | O34: =O33*O15*(O29-O26) -> 7.744 | R34: =R33*R15*(R29-R26) -> 3.645 | S34: =S33*S15*(S29-S26) -> 4.59 | T34: =T33*T15*(T29-T26) -> 6.885 | U34: =U33*U15*(U29-U26) -> 7.425 | W34: =W33*W15*(W29-W26) -> 3.645 | X34: =X33*X15*(X29-X26) -> 4.59 | Y34: =Y33*Y15*(Y29-Y26) -> 6.885 | Z34: =Z33*Z15*(Z29-Z26) -> 7.425 | AB34: 7.425 | AD34: =AD33*AD15*(AD29-AD26) -> 7.425 | AG34: =AG33*AG15*(AG29-AG26) -> 10.395 | AH34: =AH33*AH15*(AH29-AH26) -> 11.36025 | AI34: =AI33*AI15*(AI29-AI26) -> 14.03325 | AJ34: =AJ33*AJ15*(AJ29-AJ26) -> 16.038 | AL34: =AL33*AL15*(AL29-AL26) -> 10.01750218 | AM34: =AM33*AM15*(AM29-AM26) -> 10.92078834 | AN34: 13.43877924 | AO34: 14.47320342 | AZ34: =AZ33*AZ15*(AZ29-AZ26) -> 5.64015166 | BA34: =BA33*BA15*(BA29-BA26) -> 5.995006004 | BB34: 7.196438426 | BC34: 7.754740956
A35: Ploss_tot | B35: total heat power loss (Ptrans+Pdoor) [W] | C35: =C32+C34 -> 14.0592 | D35: =D32+D34 -> 20.84532195 | E35: 24.85320377 | F35: 31.52314286 | H35: =H32+H34 -> 14.2264 | I35: =I32+I34 -> 21.01352195 | J35: =J32+J34 -> 26.4 | K35: =K32+K34 -> 33.88646154 | M35: 31.69714286 | O35: =O32+O34 -> 27.52396246 | R35: =R32+R34 -> 24.23625 | S35: =S32+S34 -> 27.1255 | T35: =T32+T34 -> 39.25677273 | U35: =U32+U34 -> 45.039 | W35: =W32+W34 -> 24.63 | X35: =X32+X34 -> 27.526 | Y35: =Y32+Y34 -> 43.965 | Z35: =Z32+Z34 -> 55.305 | AB35: 45.453 | AD35: =AD32+AD34 -> 49.50079298 | AG35: =AG32+AG34 -> 46.935 | AH35: =AH32+AH34 -> 47.10178846 | AI35: =AI32+AI34 -> 61.16667857 | AJ35: =AJ32+AJ34 -> 73.52788235 | AL35: =AL32+AL34 -> 39.83178585 | AM35: =AM32+AM34 -> 43.96179075 | AN35: 53.7756583 | AO35: 64.72085034 | AZ35: =AZ32+AZ34 -> 22.42648009 | BA35: =BA32+BA34 -> 24.13298302 | BB35: 28.79675355 | BC35: 34.67742518
A36: Ploss_tot_spec | B36: specific total heat loss [W/m3] | C36: =C35/C6 -> 0.3357283638 | D36: =D35/D6 -> 0.1941776803 | E36: 0.1352113919 | F36: 0.09509587936 | H36: =H35/H6 -> 0.3178607043 | I36: =I35/I6 -> 0.1899410791 | J36: =J35/J6 -> 0.1356454721 | K36: =K35/K6 -> 0.09558379204 | M36: 0.09403224932 | O36: 0.09260881417 | R36: =R35/R6 -> 0.2955640244 | S36: =S35/S6 -> 0.2448304496 | T36: =T35/T6 -> 0.1738471504 | U36: =U35/U6 -> 0.1268718521 | W36: =W35/W6 -> 0.2798863636 | X36: =X35/X6 -> 0.2332850254 | Y36: =Y35/Y6 -> 0.1665340909 | Z36: =Z35/Z6 -> 0.1249830508 | AB36: 0.1246667544 | AD36: 0.1240555717 | AG36: =AG35/AG6 -> 0.2782223645 | AH36: =AH35/AH6 -> 0.2362389206 | AI36: =AI35/AI6 -> 0.1777150552 | AJ36: =AJ35/AJ6 -> 0.1113062969 | AL36: =AL35/AL6 -> 0.2301138435 | AM36: =AM35/AM6 -> 0.2020089363 | AN36: =AN35/AN6 -> 0.1537396173 | AO36: =AO35/AO6 -> 0.1200882658 | AZ36: =AZ35/AZ6 -> 0.1295609378 | BA36: =BA35/BA6 -> 0.1108935316 | BB36: 0.08232724639 | BC36: 0.0643432809
A37: Eloss_tot | B37: annual heat loss [kWhth/a] | C37: =C35*365*24/1000 -> 123.158592 | D37: =D35*365*24/1000 -> 182.6050203 | E37: 217.7140651 | F37: 276.1427314 | H37: =H35*365*24/1000 -> 124.623264 | I37: =I35*365*24/1000 -> 184.0784523 | J37: =J35*365*24/1000 -> 231.264 | K37: =K35*365*24/1000 -> 296.8454031 | M37: 277.6669714 | O37: =O35*365*24/1000 -> 241.1099112 | R37: =R35*365*24/1000 -> 212.30955 | S37: =S35*365*24/1000 -> 237.61938 | T37: =T35*365*24/1000 -> 343.8893291 | U37: =U35*365*24/1000 -> 394.54164 | W37: =W35*365*24/1000 -> 215.7588 | X37: =X35*365*24/1000 -> 241.12776 | Y37: =Y35*365*24/1000 -> 385.1334 | Z37: =Z35*365*24/1000 -> 484.4718 | AB37: 398.16828 | AD37: =AD35*365*24/1000 -> 433.6269465 | AG37: =AG35*365*24/1000 -> 411.1506 | AH37: =AH35*365*24/1000 -> 412.6116669 | AI37: =AI35*365*24/1000 -> 535.8201043 | AJ37: =AJ35*365*24/1000 -> 644.1042494 | AL37: =AL35*365*24/1000 -> 348.9264441 | AM37: =AM35*365*24/1000 -> 385.105287 | AN37: 471.0747667 | AO37: 566.954649 | AP37: =SUM(AL37:AO37) -> 1772.061147 | AZ37: =AZ35*365*24/1000 -> 196.4559656 | BA37: =BA35*365*24/1000 -> 211.4049312 | BB37: 252.2595611 | BC37: 303.7742446 | BE37: =SUM(AZ37:BC37) -> 963.8947025
A38: dTev | B38: evaporator temperature difference [K] | C38: 25 | D38: 19 | E38: 16 | F38: 14 | H38: 25 | I38: 19 | J38: 16 | K38: 14 | M38: 14 | O38: 14 | R38: 12 | S38: 9 | T38: 8 | U38: 8 | W38: 12 | X38: 9 | Y38: 8 | Z38: 8 | AB38: 8 | AD38: 8 | AG38: =22*rVFresh+10*(1-rVFresh) -> 16 | AH38: =21*rVFresh+10*(1-rVFresh) -> 15.5 | AI38: =18*rVFresh+8*(1-rVFresh) -> 13 | AJ38: =16*rVFresh+6*(1-rVFresh) -> 11
A39: dTcd | B39: condenser temperature difference [K] | C39: 21 | D39: 13 | E39: 10 | F39: 9 | H39: 21 | I39: 13 | J39: 10 | K39: 9 | M39: 9 | O39: 9 | R39: 11 | S39: 9 | T39: 7 | U39: 6 | W39: 11 | X39: 11 | Y39: 10 | Z39: 9 | AB39: 6 | AD39: 6 | AG39: =19*rVFresh+10*(1-rVFresh) -> 14.5 | AH39: =17*rVFresh+10*(1-rVFresh) -> 13.5 | AI39: =14*rVFresh+10*(1-rVFresh) -> 12 | AJ39: =13*rVFresh+8*(1-rVFresh) -> 10.5 | AL39: 13 | AM39: 12 | AN39: 11 | AO39: 10 | AZ39: 13 | BA39: 12 | BB39: 11 | BC39: 10
A40: Tev | B40: evaporator temperature [C] | C40: =C26-C38 -> -20 | D40: =D26-D38 -> -14 | E40: -11 | F40: -9 | H40: =H26-H38 -> -20 | I40: =I26-I38 -> -14 | J40: -11 | K40: -9 | M40: =M26-M38 -> -9 | O40: -9 | R40: =R26-R38 -> -32 | S40: =S26-S38 -> -29 | T40: -28 | U40: -28 | W40: =W26-W38 -> -32 | X40: =X26-X38 -> -29 | Y40: -28 | Z40: -28 | AB40: =AB26-AB38 -> -28 | AD40: =AD26-AD38 -> -28 | AG40: =AG26-AG38 -> -24 | AH40: =AH26-AH38 -> -23.5 | AI40: -21 | AJ40: -19 | AL40: -26 | AM40: -25 | AN40: -24 | AO40: -23 | AZ40: -26 | BA40: -25 | BB40: -24 | BC40: -23
A41: Tcd | B41: condenser temperature [C] | C41: =C29+C39 -> 46 | D41: =D29+D39 -> 38 | E41: 35 | F41: 34 | H41: =H29+H39 -> 46 | I41: =I29+I39 -> 38 | J41: 35 | K41: 34 | M41: =M29+M39 -> 34 | O41: 34 | R41: =R29+R39 -> 36 | S41: =S29+S39 -> 34 | T41: 32 | U41: 31 | W41: =W29+W39 -> 36 | X41: =X29+X39 -> 36 | Y41: 35 | Z41: 34 | AB41: =AB29+AB39 -> 31 | AD41: =AD29+AD39 -> 31 | AG41: =AG29+AG39 -> 39.5 | AH41: =AH29+AH39 -> 38.5 | AI41: 37 | AJ41: 35.5 | AL41: =AL29+AL39 -> 38 | AM41: =AM29+AM39 -> 37 | AN41: 36 | AO41: 35 | AZ41: =AZ29+AZ39 -> 38 | BA41: =BA29+BA39 -> 37 | BB41: 36 | BC41: 35
A42: Pnom | B42: nominal compressor cooling power [W] | C42: 45 | D42: 45 | E42: 45 | F42: 45 | H42: 45 | I42: 55 | J42: 65 | K42: 75 | M42: 75 | O42: 75 | R42: 80 | S42: 100 | T42: 120 | U42: 140 | W42: 80 | X42: 100 | Y42: 120 | Z42: 140 | AB42: 140 | AD42: 140 | AG42: 100 | AH42: 100 | AI42: 120 | AJ42: 120 | AL42: 100 | AM42: 100 | AN42: 120 | AO42: 120 | AZ42: 100 | BA42: 100 | BB42: 120 | BC42: 120
A43: COPnom | B43: nominal at -23.4/54.4 (subcooling 32.2) [-] | C43: 1.7 | D43: 1.7 | E43: 1.7 | F43: 1.7 | H43: 1.7 | I43: 1.7 | J43: 1.7 | K43: 1.7 | M43: 1.7 | O43: 1.7 | R43: 1.7 | S43: 1.7 | T43: 1.8 | U43: 1.9 | W43: 1.7 | X43: 1.7 | Y43: 1.8 | Z43: 1.9 | AB43: 1.9 | AD43: 1.9 | AG43: 1.7 | AH43: 1.7 | AI43: 1.8 | AJ43: 1.8 | AL43: 1.7 | AM43: 1.7 | AN43: 1.8 | AO43: 1.8 | AZ43: 1.7 | BA43: 1.7 | BB43: 1.8 | BC43: 1.8
A44: Pratio | B44: Ratio Pc/Pcnom | C44: =Pc_c1+Pc_c2*C40+Pc_c3*C41+Pc_c4*C40^2+Pc_c5*C40*C41+Pc_c6*C41^2+Pc_c7*C40^3+Pc_c8*C41*C40^2+Pc_c9*C40*C41^2+Pc_c10*C41^3 -> 1.152240196 | D44: =Pc_c1+Pc_c2*D40+Pc_c3*D41+Pc_c4*D40^2+Pc_c5*D40*D41+Pc_c6*D41^2+Pc_c7*D40^3+Pc_c8*D41*D40^2+Pc_c9*D40*D41^2+Pc_c10*D41^3 -> 1.695148408 | E44: =Pc_c1+Pc_c2*E40+Pc_c3*E41+Pc_c4*E40^2+Pc_c5*E40*E41+Pc_c6*E41^2+Pc_c7*E40^3+Pc_c8*E41*E40^2+Pc_c9*E40*E41^2+Pc_c10*E41^3 -> 1.99981802 | F44: =Pc_c1+Pc_c2*F40+Pc_c3*F41+Pc_c4*F40^2+Pc_c5*F40*F41+Pc_c6*F41^2+Pc_c7*F40^3+Pc_c8*F41*F40^2+Pc_c9*F40*F41^2+Pc_c10*F41^3 -> 2.202495237 | H44: =Pc_c1+Pc_c2*H40+Pc_c3*H41+Pc_c4*H40^2+Pc_c5*H40*H41+Pc_c6*H41^2+Pc_c7*H40^3+Pc_c8*H41*H40^2+Pc_c9*H40*H41^2+Pc_c10*H41^3 -> 1.152240196 | I44: =Pc_c1+Pc_c2*I40+Pc_c3*I41+Pc_c4*I40^2+Pc_c5*I40*I41+Pc_c6*I41^2+Pc_c7*I40^3+Pc_c8*I41*I40^2+Pc_c9*I40*I41^2+Pc_c10*I41^3 -> 1.695148408 | J44: =Pc_c1+Pc_c2*J40+Pc_c3*J41+Pc_c4*J40^2+Pc_c5*J40*J41+Pc_c6*J41^2+Pc_c7*J40^3+Pc_c8*J41*J40^2+Pc_c9*J40*J41^2+Pc_c10*J41^3 -> 1.99981802 | K44: =Pc_c1+Pc_c2*K40+Pc_c3*K41+Pc_c4*K40^2+Pc_c5*K40*K41+Pc_c6*K41^2+Pc_c7*K40^3+Pc_c8*K41*K40^2+Pc_c9*K40*K41^2+Pc_c10*K41^3 -> 2.202495237 | M44: =Pc_c1+Pc_c2*M40+Pc_c3*M41+Pc_c4*M40^2+Pc_c5*M40*M41+Pc_c6*M41^2+Pc_c7*M40^3+Pc_c8*M41*M40^2+Pc_c9*M40*M41^2+Pc_c10*M41^3 -> 2.202495237 | O44: =Pc_c1+Pc_c2*O40+Pc_c3*O41+Pc_c4*O40^2+Pc_c5*O40*O41+Pc_c6*O41^2+Pc_c7*O40^3+Pc_c8*O41*O40^2+Pc_c9*O40*O41^2+Pc_c10*O41^3 -> 2.202495237 | R44: =Pc_c1+Pc_c2*R40+Pc_c3*R41+Pc_c4*R40^2+Pc_c5*R40*R41+Pc_c6*R41^2+Pc_c7*R40^3+Pc_c8*R41*R40^2+Pc_c9*R40*R41^2+Pc_c10*R41^3 -> 0.6611485506 | S44: =Pc_c1+Pc_c2*S40+Pc_c3*S41+Pc_c4*S40^2+Pc_c5*S40*S41+Pc_c6*S41^2+Pc_c7*S40^3+Pc_c8*S41*S40^2+Pc_c9*S40*S41^2+Pc_c10*S41^3 -> 0.8181391694 | T44: =Pc_c1+Pc_c2*T40+Pc_c3*T41+Pc_c4*T40^2+Pc_c5*T40*T41+Pc_c6*T41^2+Pc_c7*T40^3+Pc_c8*T41*T40^2+Pc_c9*T40*T41^2+Pc_c10*T41^3 -> 0.8898483757 | U44: =Pc_c1+Pc_c2*U40+Pc_c3*U41+Pc_c4*U40^2+Pc_c5*U40*U41+Pc_c6*U41^2+Pc_c7*U40^3+Pc_c8*U41*U40^2+Pc_c9*U40*U41^2+Pc_c10*U41^3 -> 0.9013286609 | W44: =Pc_c1+Pc_c2*W40+Pc_c3*W41+Pc_c4*W40^2+Pc_c5*W40*W41+Pc_c6*W41^2+Pc_c7*W40^3+Pc_c8*W41*W40^2+Pc_c9*W40*W41^2+Pc_c10*W41^3 -> 0.6611485506 | X44: =Pc_c1+Pc_c2*X40+Pc_c3*X41+Pc_c4*X40^2+Pc_c5*X40*X41+Pc_c6*X41^2+Pc_c7*X40^3+Pc_c8*X41*X40^2+Pc_c9*X40*X41^2+Pc_c10*X41^3 -> 0.7956048992 | Y44: =Pc_c1+Pc_c2*Y40+Pc_c3*Y41+Pc_c4*Y40^2+Pc_c5*Y40*Y41+Pc_c6*Y41^2+Pc_c7*Y40^3+Pc_c8*Y41*Y40^2+Pc_c9*Y40*Y41^2+Pc_c10*Y41^3 -> 0.8552926707 | Z44: =Pc_c1+Pc_c2*Z40+Pc_c3*Z41+Pc_c4*Z40^2+Pc_c5*Z40*Z41+Pc_c6*Z41^2+Pc_c7*Z40^3+Pc_c8*Z41*Z40^2+Pc_c9*Z40*Z41^2+Pc_c10*Z41^3 -> 0.866830997 | AB44: =Pc_c1+Pc_c2*AB40+Pc_c3*AB41+Pc_c4*AB40^2+Pc_c5*AB40*AB41+Pc_c6*AB41^2+Pc_c7*AB40^3+Pc_c8*AB41*AB40^2+Pc_c9*AB40*AB41^2+Pc_c10*AB41^3 -> 0.9013286609 | AD44: =Pc_c1+Pc_c2*AD40+Pc_c3*AD41+Pc_c4*AD40^2+Pc_c5*AD40*AD41+Pc_c6*AD41^2+Pc_c7*AD40^3+Pc_c8*AD41*AD40^2+Pc_c9*AD40*AD41^2+Pc_c10*AD41^3 -> 0.9013286609 | AG44: =Pc_c1+Pc_c2*AG40+Pc_c3*AG41+Pc_c4*AG40^2+Pc_c5*AG40*AG41+Pc_c6*AG41^2+Pc_c7*AG40^3+Pc_c8*AG41*AG40^2+Pc_c9*AG40*AG41^2+Pc_c10*AG41^3 -> 1.009308967 | AH44: =Pc_c1+Pc_c2*AH40+Pc_c3*AH41+Pc_c4*AH40^2+Pc_c5*AH40*AH41+Pc_c6*AH41^2+Pc_c7*AH40^3+Pc_c8*AH41*AH40^2+Pc_c9*AH40*AH41^2+Pc_c10*AH41^3 -> 1.050275242 | AI44: =Pc_c1+Pc_c2*AI40+Pc_c3*AI41+Pc_c4*AI40^2+Pc_c5*AI40*AI41+Pc_c6*AI41^2+Pc_c7*AI40^3+Pc_c8*AI41*AI40^2+Pc_c9*AI40*AI41^2+Pc_c10*AI41^3 -> 1.219228193 | AJ44: =Pc_c1+Pc_c2*AJ40+Pc_c3*AJ41+Pc_c4*AJ40^2+Pc_c5*AJ40*AJ41+Pc_c6*AJ41^2+Pc_c7*AJ40^3+Pc_c8*AJ41*AJ40^2+Pc_c9*AJ40*AJ41^2+Pc_c10*AJ41^3 -> 1.370759422 | AL44: =Pc_c1+Pc_c2*AL40+Pc_c3*AL41+Pc_c4*AL40^2+Pc_c5*AL40*AL41+Pc_c6*AL41^2+Pc_c7*AL40^3+Pc_c8*AL41*AL40^2+Pc_c9*AL40*AL41^2+Pc_c10*AL41^3 -> 0.9209236029 | AM44: =Pc_c1+Pc_c2*AM40+Pc_c3*AM41+Pc_c4*AM40^2+Pc_c5*AM40*AM41+Pc_c6*AM41^2+Pc_c7*AM40^3+Pc_c8*AM41*AM40^2+Pc_c9*AM40*AM41^2+Pc_c10*AM41^3 -> 0.9863838912 | AN44: =Pc_c1+Pc_c2*AN40+Pc_c3*AN41+Pc_c4*AN40^2+Pc_c5*AN40*AN41+Pc_c6*AN41^2+Pc_c7*AN40^3+Pc_c8*AN41*AN40^2+Pc_c9*AN40*AN41^2+Pc_c10*AN41^3 -> 1.054432531 | AO44: =Pc_c1+Pc_c2*AO40+Pc_c3*AO41+Pc_c4*AO40^2+Pc_c5*AO40*AO41+Pc_c6*AO41^2+Pc_c7*AO40^3+Pc_c8*AO41*AO40^2+Pc_c9*AO40*AO41^2+Pc_c10*AO41^3 -> 1.125191539 | AZ44: =Pc_c1+Pc_c2*AZ40+Pc_c3*AZ41+Pc_c4*AZ40^2+Pc_c5*AZ40*AZ41+Pc_c6*AZ41^2+Pc_c7*AZ40^3+Pc_c8*AZ41*AZ40^2+Pc_c9*AZ40*AZ41^2+Pc_c10*AZ41^3 -> 0.9209236029 | BA44: =Pc_c1+Pc_c2*BA40+Pc_c3*BA41+Pc_c4*BA40^2+Pc_c5*BA40*BA41+Pc_c6*BA41^2+Pc_c7*BA40^3+Pc_c8*BA41*BA40^2+Pc_c9*BA40*BA41^2+Pc_c10*BA41^3 -> 0.9863838912 | BB44: =Pc_c1+Pc_c2*BB40+Pc_c3*BB41+Pc_c4*BB40^2+Pc_c5*BB40*BB41+Pc_c6*BB41^2+Pc_c7*BB40^3+Pc_c8*BB41*BB40^2+Pc_c9*BB40*BB41^2+Pc_c10*BB41^3 -> 1.054432531 | BC44: =Pc_c1+Pc_c2*BC40+Pc_c3*BC41+Pc_c4*BC40^2+Pc_c5*BC40*BC41+Pc_c6*BC41^2+Pc_c7*BC40^3+Pc_c8*BC41*BC40^2+Pc_c9*BC40*BC41^2+Pc_c10*BC41^3 -> 1.125191539
A45: P | B45: Cooling power | C45: =C42*C44 -> 51.85080882 | D45: =D42*D44 -> 76.28167837 | E45: 89.99181091 | F45: 99.11228566 | H45: =H42*H44 -> 51.85080882 | I45: =I42*I44 -> 93.23316245 | J45: 129.9881713 | K45: =K42*K44 -> 165.1871428 | M45: 165.1871428 | O45: =O42*O44 -> 165.1871428 | R45: =R42*R44 -> 52.89188405 | S45: =S42*S44 -> 81.81391694 | T45: =T42*T44 -> 106.7818051 | U45: =U42*U44 -> 126.1860125 | W45: =W42*W44 -> 52.89188405 | X45: =X42*X44 -> 79.56048992 | Y45: =Y42*Y44 -> 102.6351205 | Z45: =Z42*Z44 -> 121.3563396 | AB45: 126.1860125 | AD45: =AD42*AD44 -> 126.1860125 | AG45: =AG42*AG44 -> 100.9308967 | AH45: =AH42*AH44 -> 105.0275242 | AI45: =AI42*AI44 -> 146.3073832 | AJ45: =AJ42*AJ44 -> 164.4911307 | AL45: =AL42*AL44 -> 92.09236029 | AM45: =AM42*AM44 -> 98.63838912 | AN45: 126.5319037 | AO45: 135.0229846 | AZ45: =AZ42*AZ44 -> 92.09236029 | BA45: =BA42*BA44 -> 98.63838912 | BB45: 126.5319037 | BC45: 135.0229846
A46: Load factor | B46: Ratio of heat load to cooling power | C46: =C35/C45 -> 0.2711471686 | D46: =D35/D45 -> 0.2732677413 | E46: 0.2761718374 | F46: 0.3180548471 | H46: =H35/H45 -> 0.2743718048 | I46: =I35/I45 -> 0.2253867765 | J46: 0.2030954027 | K46: =K35/K45 -> 0.2051398249 | M46: 0.191886259 | O46: =O35/O45 -> 0.1666229102 | R46: =R35/R45 -> 0.4582224747 | S46: =S35/S45 -> 0.3315511714 | T46: =T35/T45 -> 0.3676354103 | U46: =U35/U45 -> 0.3569254555 | W46: =W35/W45 -> 0.465666906 | X46: =X35/X45 -> 0.3459757479 | Y46: =Y35/Y45 -> 0.4283621414 | Z46: =Z35/Z45 -> 0.4557240289 | AB46: 0.3602063263 | AD46: =AD35/AD45 -> 0.392284311 | AG46: =AG35/AG45 -> 0.4650211336 | AH46: =AH35/AH45 -> 0.4484709014 | AI46: =AI35/AI45 -> 0.4180696642 | AJ46: =AJ35/AJ45 -> 0.4470021092 | AL46: =AL35/AL45 -> 0.4325199802 | AM46: =AM35/AM45 -> 0.4456864223 | AN46: 0.4249968326 | AO46: 0.4793320967 | AZ46: =AZ35/AZ45 -> 0.2435216126 | BA46: =BA35/BA45 -> 0.2446611632 | BB46: 0.2275849229 | BC46: 0.2568260898
A47: Cycling losses | B47: Part load losses (in % COP) | C47: =0.125*(1-C35/C45) -> 0.09110660393 | D47: =0.125*(1-D35/D45) -> 0.09084153233 | E47: 0.09047852032 | F47: 0.08524314412 | H47: =0.125*(1-H35/H45) -> 0.09070352439 | I47: =0.125*(1-I35/I45) -> 0.09682665293 | J47: =0.125*(1-J35/J45) -> 0.09961307466 | K47: =0.125*(1-K35/K45) -> 0.09935752189 | M47: =0.125*(1-M35/M45) -> 0.1010142176 | O47: =0.125*(1-O35/O45) -> 0.1041721362 | R47: =0.125*(1-R35/R45) -> 0.06772219067 | S47: =0.125*(1-S35/S45) -> 0.08355610357 | T47: 0.07904557371 | U47: 0.08038431806 | W47: =0.125*(1-W35/W45) -> 0.06679163675 | X47: =0.125*(1-X35/X45) -> 0.08175303152 | Y47: 0.07145473232 | Z47: 0.06803449639 | AB47: =0.125*(1-AB35/AB45) -> 0.07997420922 | AD47: =0.125*(1-AD35/AD45) -> 0.07596446113 | AG47: =0.125*(1-AG35/AG45) -> 0.0668723583 | AH47: =0.125*(1-AH35/AH45) -> 0.06894113732 | AI47: 0.07274129197 | AJ47: 0.06912473635 | AL47: =0.125*(1-AL35/AL45) -> 0.07093500247 | AM47: =0.125*(1-AM35/AM45) -> 0.06928919721 | AN47: 0.07187539593 | AO47: 0.06508348791 | AZ47: =0.125*(1-AZ35/AZ45) -> 0.09455979842 | BA47: =0.125*(1-BA35/BA45) -> 0.0944173546 | BB47: 0.09655188464 | BC47: 0.09289673877
A48: COP ratio | B48: Ratio COP/ COPnom | C48: =COP_c1+COP_c2*C40+COP_c3*C41+COP_c4*C40^2+COP_c5*C40*C41+COP_c6*C41^2+COP_c7*C40^3+COP_c8*C41*C40^2+COP_c9*C40*C41^2+COP_c10*C41^3 -> 1.096016211 | D48: =COP_c1+COP_c2*D40+COP_c3*D41+COP_c4*D40^2+COP_c5*D40*D41+COP_c6*D41^2+COP_c7*D40^3+COP_c8*D41*D40^2+COP_c9*D40*D41^2+COP_c10*D41^3 -> 1.490877924 | E48: =COP_c1+COP_c2*E40+COP_c3*E41+COP_c4*E40^2+COP_c5*E40*E41+COP_c6*E41^2+COP_c7*E40^3+COP_c8*E41*E40^2+COP_c9*E40*E41^2+COP_c10*E41^3 -> 1.730144936 | F48: =COP_c1+COP_c2*F40+COP_c3*F41+COP_c4*F40^2+COP_c5*F40*F41+COP_c6*F41^2+COP_c7*F40^3+COP_c8*F41*F40^2+COP_c9*F40*F41^2+COP_c10*F41^3 -> 1.873853164 | H48: =COP_c1+COP_c2*H40+COP_c3*H41+COP_c4*H40^2+COP_c5*H40*H41+COP_c6*H41^2+COP_c7*H40^3+COP_c8*H41*H40^2+COP_c9*H40*H41^2+COP_c10*H41^3 -> 1.096016211 | I48: =COP_c1+COP_c2*I40+COP_c3*I41+COP_c4*I40^2+COP_c5*I40*I41+COP_c6*I41^2+COP_c7*I40^3+COP_c8*I41*I40^2+COP_c9*I40*I41^2+COP_c10*I41^3 -> 1.490877924 | J48: =COP_c1+COP_c2*J40+COP_c3*J41+COP_c4*J40^2+COP_c5*J40*J41+COP_c6*J41^2+COP_c7*J40^3+COP_c8*J41*J40^2+COP_c9*J40*J41^2+COP_c10*J41^3 -> 1.730144936 | K48: =COP_c1+COP_c2*K40+COP_c3*K41+COP_c4*K40^2+COP_c5*K40*K41+COP_c6*K41^2+COP_c7*K40^3+COP_c8*K41*K40^2+COP_c9*K40*K41^2+COP_c10*K41^3 -> 1.873853164 | M48: =COP_c1+COP_c2*M40+COP_c3*M41+COP_c4*M40^2+COP_c5*M40*M41+COP_c6*M41^2+COP_c7*M40^3+COP_c8*M41*M40^2+COP_c9*M40*M41^2+COP_c10*M41^3 -> 1.873853164 | O48: =COP_c1+COP_c2*O40+COP_c3*O41+COP_c4*O40^2+COP_c5*O40*O41+COP_c6*O41^2+COP_c7*O40^3+COP_c8*O41*O40^2+COP_c9*O40*O41^2+COP_c10*O41^3 -> 1.873853164 | R48: =COP_c1+COP_c2*R40+COP_c3*R41+COP_c4*R40^2+COP_c5*R40*R41+COP_c6*R41^2+COP_c7*R40^3+COP_c8*R41*R40^2+COP_c9*R40*R41^2+COP_c10*R41^3 -> 0.9921132305 | S48: =COP_c1+COP_c2*S40+COP_c3*S41+COP_c4*S40^2+COP_c5*S40*S41+COP_c6*S41^2+COP_c7*S40^3+COP_c8*S41*S40^2+COP_c9*S40*S41^2+COP_c10*S41^3 -> 1.120608545 | T48: =COP_c1+COP_c2*T40+COP_c3*T41+COP_c4*T40^2+COP_c5*T40*T41+COP_c6*T41^2+COP_c7*T40^3+COP_c8*T41*T40^2+COP_c9*T40*T41^2+COP_c10*T41^3 -> 1.19998771 | U48: =COP_c1+COP_c2*U40+COP_c3*U41+COP_c4*U40^2+COP_c5*U40*U41+COP_c6*U41^2+COP_c7*U40^3+COP_c8*U41*U40^2+COP_c9*U40*U41^2+COP_c10*U41^3 -> 1.226606409 | W48: =COP_c1+COP_c2*W40+COP_c3*W41+COP_c4*W40^2+COP_c5*W40*W41+COP_c6*W41^2+COP_c7*W40^3+COP_c8*W41*W40^2+COP_c9*W40*W41^2+COP_c10*W41^3 -> 0.9921132305 | X48: =COP_c1+COP_c2*X40+COP_c3*X41+COP_c4*X40^2+COP_c5*X40*X41+COP_c6*X41^2+COP_c7*X40^3+COP_c8*X41*X40^2+COP_c9*X40*X41^2+COP_c10*X41^3 -> 1.074174793 | Y48: =COP_c1+COP_c2*Y40+COP_c3*Y41+COP_c4*Y40^2+COP_c5*Y40*Y41+COP_c6*Y41^2+COP_c7*Y40^3+COP_c8*Y41*Y40^2+COP_c9*Y40*Y41^2+COP_c10*Y41^3 -> 1.125323997 | Z48: =COP_c1+COP_c2*Z40+COP_c3*Z41+COP_c4*Z40^2+COP_c5*Z40*Z41+COP_c6*Z41^2+COP_c7*Z40^3+COP_c8*Z41*Z40^2+COP_c9*Z40*Z41^2+COP_c10*Z41^3 -> 1.149416776 | AB48: =COP_c1+COP_c2*AB40+COP_c3*AB41+COP_c4*AB40^2+COP_c5*AB40*AB41+COP_c6*AB41^2+COP_c7*AB40^3+COP_c8*AB41*AB40^2+COP_c9*AB40*AB41^2+COP_c10*AB41^3 -> 1.226606409 | AD48: =COP_c1+COP_c2*AD40+COP_c3*AD41+COP_c4*AD40^2+COP_c5*AD40*AD41+COP_c6*AD41^2+COP_c7*AD40^3+COP_c8*AD41*AD40^2+COP_c9*AD40*AD41^2+COP_c10*AD41^3 -> 1.226606409 | AG48: =COP_c1+COP_c2*AG40+COP_c3*AG41+COP_c4*AG40^2+COP_c5*AG40*AG41+COP_c6*AG41^2+COP_c7*AG40^3+COP_c8*AG41*AG40^2+COP_c9*AG40*AG41^2+COP_c10*AG41^3 -> 1.132454093 | AH48: =COP_c1+COP_c2*AH40+COP_c3*AH41+COP_c4*AH40^2+COP_c5*AH40*AH41+COP_c6*AH41^2+COP_c7*AH40^3+COP_c8*AH41*AH40^2+COP_c9*AH40*AH41^2+COP_c10*AH41^3 -> 1.169843182 | AI48: =COP_c1+COP_c2*AI40+COP_c3*AI41+COP_c4*AI40^2+COP_c5*AI40*AI41+COP_c6*AI41^2+COP_c7*AI40^3+COP_c8*AI41*AI40^2+COP_c9*AI40*AI41^2+COP_c10*AI41^3 -> 1.282275256 | AJ48: =COP_c1+COP_c2*AJ40+COP_c3*AJ41+COP_c4*AJ40^2+COP_c5*AJ40*AJ41+COP_c6*AJ41^2+COP_c7*AJ40^3+COP_c8*AJ41*AJ40^2+COP_c9*AJ40*AJ41^2+COP_c10*AJ41^3 -> 1.391302523 | AL48: =COP_c1+COP_c2*AL40+COP_c3*AL41+COP_c4*AL40^2+COP_c5*AL40*AL41+COP_c6*AL41^2+COP_c7*AL40^3+COP_c8*AL41*AL40^2+COP_c9*AL40*AL41^2+COP_c10*AL41^3 -> 1.111567542 | AM48: =COP_c1+COP_c2*AM40+COP_c3*AM41+COP_c4*AM40^2+COP_c5*AM40*AM41+COP_c6*AM41^2+COP_c7*AM40^3+COP_c8*AM41*AM40^2+COP_c9*AM40*AM41^2+COP_c10*AM41^3 -> 1.163060512 | AN48: =COP_c1+COP_c2*AN40+COP_c3*AN41+COP_c4*AN40^2+COP_c5*AN40*AN41+COP_c6*AN41^2+COP_c7*AN40^3+COP_c8*AN41*AN40^2+COP_c9*AN40*AN41^2+COP_c10*AN41^3 -> 1.217064063 | AO48: =COP_c1+COP_c2*AO40+COP_c3*AO41+COP_c4*AO40^2+COP_c5*AO40*AO41+COP_c6*AO41^2+COP_c7*AO40^3+COP_c8*AO41*AO40^2+COP_c9*AO40*AO41^2+COP_c10*AO41^3 -> 1.274112508 | AZ48: =COP_c1+COP_c2*AZ40+COP_c3*AZ41+COP_c4*AZ40^2+COP_c5*AZ40*AZ41+COP_c6*AZ41^2+COP_c7*AZ40^3+COP_c8*AZ41*AZ40^2+COP_c9*AZ40*AZ41^2+COP_c10*AZ41^3 -> 1.111567542 | BA48: =COP_c1+COP_c2*BA40+COP_c3*BA41+COP_c4*BA40^2+COP_c5*BA40*BA41+COP_c6*BA41^2+COP_c7*BA40^3+COP_c8*BA41*BA40^2+COP_c9*BA40*BA41^2+COP_c10*BA41^3 -> 1.163060512 | BB48: =COP_c1+COP_c2*BB40+COP_c3*BB41+COP_c4*BB40^2+COP_c5*BB40*BB41+COP_c6*BB41^2+COP_c7*BB40^3+COP_c8*BB41*BB40^2+COP_c9*BB40*BB41^2+COP_c10*BB41^3 -> 1.217064063 | BC48: =COP_c1+COP_c2*BC40+COP_c3*BC41+COP_c4*BC40^2+COP_c5*BC40*BC41+COP_c6*BC41^2+COP_c7*BC40^3+COP_c8*BC41*BC40^2+COP_c9*BC40*BC41^2+COP_c10*BC41^3 -> 1.274112508
A49: COP | B49: COP at actual Tev and Tcd | C49: =C48*C43 -> 1.863227558 | D49: =D48*D43 -> 2.534492471 | E49: 2.941246392 | F49: 3.185550378 | H49: =H48*H43 -> 1.863227558 | I49: =I48*I43 -> 2.534492471 | J49: 2.941246392 | K49: =K48*K43 -> 3.185550378 | M49: 3.185550378 | O49: =O48*O43 -> 3.185550378 | R49: =R48*R43 -> 1.686592492 | S49: =S48*S43 -> 1.905034527 | T49: =T48*T43 -> 2.159977878 | U49: =U48*U43 -> 2.330552177 | W49: =W48*W43 -> 1.686592492 | X49: =X48*X43 -> 1.826097147 | Y49: =Y48*Y43 -> 2.025583194 | Z49: =Z48*Z43 -> 2.183891875 | AB49: 2.330552177 | AD49: =AD48*AD43 -> 2.330552177 | AG49: =AG48*AG43 -> 1.925171958 | AH49: =AH48*AH43 -> 1.98873341 | AI49: =AI48*AI43 -> 2.308095461 | AJ49: =AJ48*AJ43 -> 2.504344542 | AL49: =AL48*AL43 -> 1.889664822 | AM49: =AM48*AM43 -> 1.97720287 | AN49: 2.190715313 | AO49: 2.293402515 | AZ49: =AZ48*AZ43 -> 1.889664822 | BA49: =BA48*BA43 -> 1.97720287 | BB49: 2.190715313 | BC49: 2.293402515
A50: COP cyc | B50: avg COP at actual Tev and Tcd | C50: =C49*(1-C47) -> 1.693475223 | D50: =D49*(1-D47) -> 2.304255291 | E50: 2.67512677 | F50: =F49*(1-F47) -> 2.914004048 | H50: =H49*(1-H47) -> 1.694226252 | I50: =I49*(1-I47) -> 2.289086048 | J50: 2.648259795 | K50: =K49*(1-K47) -> 2.869041987 | M50: =M49*(1-M47) -> 2.863764499 | O50: =O49*(1-O47) -> 2.85370479 | R50: =R49*(1-R47) -> 1.572372753 | S50: =S49*(1-S47) -> 1.745857265 | T50: =T49*(1-T47) -> 1.989241188 | U50: =U49*(1-U47) -> 2.143212329 | W50: =W49*(1-W47) -> 1.573942219 | X50: =X49*(1-X47) -> 1.67680817 | Y50: =Y49*(1-Y47) -> 1.880845689 | Z50: =Z49*(1-Z47) -> 2.035311891 | AB50: =AB49*(1-AB47) -> 2.144168109 | AD50: =AD49*(1-AD47) -> 2.153513037 | AG50: =AG49*(1-AG47) -> 1.796431169 | AH50: =AH49*(1-AH47) -> 1.851627867 | AI50: =AI49*(1-AI47) -> 2.140201615 | AJ50: =AJ49*(1-AJ47) -> 2.331232386 | AL50: =AL49*(1-AL47) -> 1.755621443 | AM50: =AM49*(1-AM47) -> 1.84020407 | AN50: 2.033256783 | AO50: =AO49*(1-AO47) -> 2.14413988 | AZ50: =AZ49*(1-AZ47) -> 1.710978497 | BA50: =BA49*(1-BA47) -> 1.790520606 | BB50: 1.979197621 | BC50: =BC49*(1-BC47) -> 2.080352901
A51: Eaux | B51: electricity CPU and possible fan [kWh/a] | C51: 4 | D51: 4 | E51: 8 | F51: 11 | H51: 4 | I51: 4 | J51: 8 | K51: 11 | M51: 6 | O51: 6 | R51: 4 | S51: 4 | T51: 8 | U51: 12 | W51: 4 | X51: 4 | Y51: 8 | Z51: 12 | AB51: 12 | AD51: 12 | AG51: 8 | AH51: 8 | AI51: 16 | AJ51: 23 | AL51: 8 | AM51: 8 | AN51: 16 | AO51: 23 | AZ51: 8 | BA51: 8 | BB51: 16 | BC51: 23
A52: Eaux | B52: electricity CPU and possible fan [W] | C52: =C51*1000/(365*25) -> 0.4383561644 | D52: =D51*1000/(365*25) -> 0.4383561644 | E52: 0.8767123288 | F52: 1.205479452 | H52: =H51*1000/(365*25) -> 0.4383561644 | I52: =I51*1000/(365*25) -> 0.4383561644 | J52: =J51*1000/(365*25) -> 0.8767123288 | K52: =K51*1000/(365*25) -> 1.205479452 | R52: =R51*1000/(365*25) -> 0.4383561644 | S52: =S51*1000/(365*25) -> 0.4383561644 | T52: =T51*1000/(365*25) -> 0.8767123288 | U52: =U51*1000/(365*25) -> 1.315068493 | W52: =W51*1000/(365*25) -> 0.4383561644 | X52: =X51*1000/(365*25) -> 0.4383561644 | Y52: =Y51*1000/(365*25) -> 0.8767123288 | Z52: =Z51*1000/(365*25) -> 1.315068493 | AG52: =AG51*1000/(365*25) -> 0.8767123288 | AH52: =AH51*1000/(365*25) -> 0.8767123288 | AI52: =AI51*1000/(365*25) -> 1.753424658 | AJ52: =AJ51*1000/(365*25) -> 2.520547945 | AL52: =AL51*1000/(365*25) -> 0.8767123288 | AM52: =AM51*1000/(365*25) -> 0.8767123288 | AN52: =AN51*1000/(365*25) -> 1.753424658 | AO52: =AO51*1000/(365*25) -> 2.520547945 | AZ52: =AZ51*1000/(365*25) -> 0.8767123288 | BA52: =BA51*1000/(365*25) -> 0.8767123288 | BB52: 1.753424658 | BC52: 2.520547945
A53: AE | B53: annual electricity consumption [kWh/a] | C53: =C37/C50+C51 -> 76.7253581 | D53: =D37/D50+D51 -> 83.24687033 | E53: 89.38457866 | F53: 105.7640178 | H53: =H37/H50+H51 -> 77.55762778 | I53: =I37/I50+I51 -> 84.41569797 | J53: 95.32677981 | K53: =K37/K50+K51 -> 114.4649909 | M53: 102.9587309 | N53: =(M53-K53)/K53 -> -0.100522089 | O53: =O37/O50+O51 -> 90.49013787 | P53: =(O53-K53)/K53 -> -0.2094514039 | R53: =R37/R50+R51 -> 139.0249485 | S53: =S37/S50+S51 -> 140.1047004 | T53: =T37/T50+T51 -> 180.8746274 | U53: =U37/U50+U51 -> 196.0889186 | W53: =W37/W50+W51 -> 141.0817794 | X53: =X37/X50+X51 -> 147.8016372 | Y53: =Y37/Y50+Y51 -> 212.7660806 | Z53: =Z37/Z50+Z51 -> 250.0331989 | AB53: 197.6982567 | AC53: =(AB53-Z53)/Z53 -> -0.209311973 | AD53: =AD37/AD50+AD51 -> 213.3579389 | AE53: =(AD53-Z53)/Z53 -> -0.146681561 | AG53: =AG37/AG50+AG51 -> 236.8707783 | AH53: =AH37/AH50+AH51 -> 230.8372527 | AI53: =AI37/AI50+AI51 -> 266.3596392 | AJ53: =AJ37/AJ50+AJ51 -> 299.2934546 | AL53: =AL37/AL50+AL51 -> 206.7481102 | AM53: =AM37/AM50+AM51 -> 217.2731416 | AN53: 247.6848372 | AO53: 287.4205512 | AZ53: =AZ37/AZ50+AZ51 -> 122.8208267 | BA53: =BA37/BA50+BA51 -> 126.0689742 | BB53: 143.4554691 | BC53: 169.0205355 | BD53: =BA53/AM53 -> 0.5802326662 | BE53: =BC53/AO53 -> 0.5880600215
A54: SAE | B54: standard annual electricity consumption [kWh/a] | C54: =C6*C63+C64 -> 254.7572739 | D54: =D6*D63+D64 -> 270.0129675 | E54: =E6*E63+E64 -> 287.8277263 | F54: =F6*F63+F64 -> 322.236704 | H54: =H6*H63+H64 -> 255.4283139 | I54: =I6*I63+I64 -> 270.7772075 | J54: =J6*J63+J64 -> 290.347625 | K54: =K6*K63+K64 -> 327.603393 | M54: =M6*M63+M64 -> 323.541504 | O54: =O6*O63+O64 -> 314.2491672 | R54: =R6*R63*2.15+R64 -> 410.0257 | S54: =S6*S63*2.15+S64 -> 443.3924681 | T54: =T6*T63*2.15+T64 -> 576.6822362 | U54: =U6*U63*2.15+U64 -> 726.3871146 | W54: =W6*W63*2.15+W64 -> 416.9788 | X54: =X6*X63*2.15+X64 -> 451.7361881 | Y54: =Y6*Y63*2.15+Y64 -> 620.9364 | Z54: =Z6*Z63*2.15+Z64 -> 827.791125 | AB54: =AB6*AB63*2.15+AB64 -> 427.6443662 | AD54: =AD6*AD63*2.15+AD64 -> 444.8896294 | AG54: =AG6*req*AG63+AG64 -> 509.4459474 | AH54: =AH6*req*AH63+AH64 -> 546.9987071 | AI54: =AI6*req*AI63+AI64 -> 724.2037746 | AJ54: =AJ6*req*AJ63+AJ64 -> 1111.414139 | AL54: =AL6*req*AL63+AL64 -> 514.8305574 | AM54: =AM6*req*AM63+AM64 -> 569.3215868 | AN54: =AN6*req*AN63+AN64 -> 731.0569146 | AO54: =AO6*req*AO63+AO64 -> 962.5461936 | AZ54: =AZ6*$BA$1*AZ63+AZ64 -> 474.4818798 | BA54: =BA6*$BA$1*BA63+BA64 -> 518.5936655 | BB54: 649.5222642 | BC54: 836.9183472
A55: EEI | C55: =C53/C54 -> 0.3011704315 | D55: =D53/D54 -> 0.3083069346 | E55: =E53/E54 -> 0.3105488822 | F55: =F53/F54 -> 0.3282184074 | H55: =H53/H54 -> 0.3036375514 | I55: =I53/I54 -> 0.3117533368 | J55: =J53/J54 -> 0.328319475 | K55: =K53/K54 -> 0.3494011154 | M55: =M53/M54 -> 0.3182241834 | O55: =O53/O54 -> 0.2879566514 | R55: =R53/R54 -> 0.3390639866 | S55: =S53/S54 -> 0.3159834921 | T55: =T53/T54 -> 0.313646955 | U55: =U53/U54 -> 0.2699509871 | W55: =W53/W54 -> 0.3383428112 | X55: =X53/X54 -> 0.327185736 | Y55: =Y53/Y54 -> 0.3426535803 | Z55: =Z53/Z54 -> 0.3020486585 | AB55: =AB53/AB54 -> 0.4622959457 | AD55: =AD53/AD54 -> 0.4795749886 | AG55: =AG53/AG54 -> 0.4649576261 | AH55: =AH53/AH54 -> 0.422006944 | AI55: =AI53/AI54 -> 0.3677965354 | AJ55: =AJ53/AJ54 -> 0.2692906668 | AL55: =AL53/AL54 -> 0.4015847685 | AM55: =AM53/AM54 -> 0.3816351717 | AN55: =AN53/AN54 -> 0.3388037679 | AO55: =AO53/AO54 -> 0.2986044235 | AZ55: =AZ53/AZ54 -> 0.2588525125 | BA55: =BA53/BA54 -> 0.2430977905 | BB55: =BB53/BB54 -> 0.2208630511 | BC55: =BC53/BC54 -> 0.2019558253
A56: q-model | B56: Model at Ta=25 C [kWh/dm3] | C56: =C53/C6 -> 1.832172452 | D56: =D53/D6 -> 0.7754586 | E56: =E53/E6 -> 0.486287941 | F56: =F53/F6 -> 0.3190583604 | H56: =H53/H6 -> 1.732871436 | I56: =I53/I6 -> 0.763032908 | J56: =J53/J6 -> 0.4897971987 | K56: =K53/K6 -> 0.3228722443 | M56: =M53/M6 -> 0.3054357643 | O56: =O53/O6 -> 0.3044686743 | R56: =R53/R6 -> 1.695426201 | S56: =S53/S6 -> 1.264562747 | T56: =T53/T6 -> 0.8009965254 | U56: =U53/U6 -> 0.5523693748 | W56: =W53/W6 -> 1.603202039 | X56: =X53/X6 -> 1.252630556 | Y56: =Y53/Y6 -> 0.8059321235 | Z56: =Z53/Z6 -> 0.5650467771 | AB56: =AB53/AB6 -> 0.5422392366 | AD56: =AD53/AD6 -> 0.5347033752 | AG56: =AG53/AG6 -> 1.404128007 | AH56: =AH53/AH6 -> 1.157763754 | AI56: =AI53/AI6 -> 0.7738873371 | AJ56: =AJ53/AJ6 -> 0.4530695713 | AL56: =AL53/AL6 -> 1.194412986 | AM56: =AM53/AM6 -> 0.9983923646 | AN56: =AN53/AN6 -> 0.7081079673 | AO56: =AO53/AO6 -> 0.533303184 | AZ56: =AZ53/AZ6 -> 0.7095532348 | BA56: =BA53/BA6 -> 0.5792998637 | BB56: =BB53/BB6 -> 0.410125875 | BC56: =BC53/BC6 -> 0.3136142818
A57: q-A+ | B57: A+ level in [kWh/dm3] | C57: =C54/C6*0.42 -> 2.555072973 | D57: =D54/D6*0.42 -> 1.056390809 | E57: =E54/E6*0.42 -> 0.6576772513 | F57: =F54/F6*0.42 -> 0.4082784767 | H57: =H54/H6*0.42 -> 2.396956502 | I57: =I54/I6*0.42 -> 1.027972386 | J57: =J54/J6*0.42 -> 0.6265690559 | K57: =K54/K6*0.42 -> 0.3881107891 | M57: =M54/M6*0.42 -> 0.4031215341 | O57: =O54/O6*0.42 -> 0.4440836585 | R57: =R54/R6*0.42 -> 2.100131634 | S57: =S54/S6*0.42 -> 1.680835762 | T57: =T54/T6*0.42 -> 1.072602604 | U57: =U54/U6*0.42 -> 0.8593972556 | W57: =W54/W6*0.42 -> 1.990126091 | X57: =X54/X6*0.42 -> 1.607969956 | Y57: =Y54/Y6*0.42 -> 0.9878533636 | Z57: =Z54/Z6*0.42 -> 0.7857000508 | AB57: =AB54/AB6*0.42 -> 0.4926291945 | AD57: =AD54/AD6*0.42 -> 0.4682800874 | AG57: =AG54/AG6*0.42 -> 1.268360233 | AH57: =AH54/AH6*0.42 -> 1.152257761 | AI57: =AI54/AI6*0.42 -> 0.8837295904 | AJ57: =AJ54/AJ6*0.42 -> 0.7066313222 | AL57: =AL54/AL6*0.42 -> 1.249184465 | AM57: =AM54/AM6*0.42 -> 1.098758249 | AN57: =AN54/AN6*0.42 -> 0.8778100317 | AO57: =AO54/AO6*0.42 -> 0.7501139289 | AZ57: =AZ54/AZ6*0.42 -> 1.151282465 | BA57: =BA54/BA6*0.42 -> 1.000856249 | BB57: =BB54/BB6*0.42 -> 0.7799080317 | BC57: =BC54/BC6*0.42 -> 0.6522119289
B58: difference q-model vs q-A+ | C58: =(C56-C57)/C57 -> -0.2829275442 | D58: =(D56-D57)/D57 -> -0.2659358699 | E58: -0.2605978995 | F58: -0.2185276015 | H58: =(H56-H57)/H57 -> -0.2770534491 | I58: =(I56-I57)/I57 -> -0.2577301505 | J58: -0.2182869643 | K58: =(K56-K57)/K57 -> -0.1680925825 | M58: -0.2423233729 | O58: =(O56-O57)/O57 -> -0.3143889253 | R58: =(R56-R57)/R57 -> -0.1927047937 | S58: =(S56-S57)/S57 -> -0.2476583521 | T58: =(T56-T57)/T57 -> -0.2532215357 | U58: =(U56-U57)/U57 -> -0.3572595546 | W58: =(W56-W57)/W57 -> -0.1944218782 | X58: =(X56-X57)/X57 -> -0.2209863429 | Y58: =(Y56-Y57)/Y57 -> -0.1841581422 | Z58: =(Z56-Z57)/Z57 -> -0.2808365273 | AB58: 0.1007046326 | AD58: =(AD56-AD57)/AD57 -> 0.1418452108 | AG58: =(AG56-AG57)/AG57 -> 0.107041967 | AH58: =(AH56-AH57)/AH57 -> 0.004778438077 | AI58: =(AI56-AI57)/AI57 -> -0.1242939633 | AJ58: =(AJ56-AJ57)/AJ57 -> -0.3588317457 | AL58: =(AL56-AL57)/AL57 -> -0.04384578936 | AM58: =(AM56-AM57)/AM57 -> -0.09134482917 | AN58: -0.1933243621 | AO58: -0.289037087 | AZ58: =(AZ56-AZ57)/AZ57 -> -0.383684494 | BA58: =(BA56-BA57)/BA57 -> -0.421195737 | BB58: -0.4741355925 | BC58: -0.519152797
A59: q-A++ | B59: A++ level in [kWh/dm3] | C59: =C54/C6*0.33 -> 2.007557336 | D59: =D54/D6*0.33 -> 0.8300213497 | E59: =E54/E6*0.33 -> 0.5167464117 | F59: =F54/F6*0.33 -> 0.3207902317 | H59: =H54/H6*0.33 -> 1.883322966 | I59: =I54/I6*0.33 -> 0.8076925888 | J59: =J54/J6*0.33 -> 0.4923042582 | K59: =K54/K6*0.33 -> 0.3049441914 | M59: =M54/M6*0.33 -> 0.3167383482 | O59: =O54/O6*0.33 -> 0.3489228745 | R59: =R54/R6*0.33 -> 1.650103427 | S59: =S54/S6*0.33 -> 1.32065667 | T59: =T54/T6*0.33 -> 0.8427591888 | U59: =U54/U6*0.33 -> 0.6752407008 | W59: =W54/W6*0.33 -> 1.5636705 | X59: =X54/X6*0.33 -> 1.263404965 | Y59: =Y54/Y6*0.33 -> 0.7761705 | Z59: =Z54/Z6*0.33 -> 0.6173357542 | AB59: =AB54/AB6*0.33 -> 0.3870657957 | AD59: =AD54/AD6*0.33 -> 0.3679343544 | AG59: =AG54/AG6*0.33 -> 0.9965687547 | AH59: =AH54/AH6*0.33 -> 0.9053453839 | AI59: =AI54/AI6*0.33 -> 0.6943589639 | AJ59: =AJ54/AJ6*0.33 -> 0.5552103246 | AL59: =AL54/AL6*0.33 -> 0.9815020794 | AM59: =AM54/AM6*0.33 -> 0.8633100529 | AN59: =AN54/AN6*0.33 -> 0.6897078821 | AO59: =AO54/AO6*0.33 -> 0.5893752299 | AZ59: =AZ54/AZ6*0.33 -> 0.9045790794 | BA59: =BA54/BA6*0.33 -> 0.7863870529 | BB59: =BB54/BB6*0.33 -> 0.6127848821 | BC59: =BC54/BC6*0.33 -> 0.5124522299
B60: difference q-model vs q-A+ | C60: =(C56-C59)/C59 -> -0.08736232892 | D60: =(D56-D59)/D59 -> -0.06573656171 | E60: -0.05894278119 | F60: -0.005398765568 | H60: =(H56-H59)/H59 -> -0.07988620795 | I60: =(I56-I59)/I59 -> -0.05529291886 | J60: -0.005092500017 | K60: =(K56-K59)/K59 -> 0.05879125869 | M60: -0.03568429274 | O60: =(O56-O59)/O59 -> -0.1274040868 | R60: =(R56-R59)/R59 -> 0.02746662614 | S60: =(S56-S59)/S59 -> -0.04247426625 | T60: =(T56-T59)/T59 -> -0.04955468178 | U60: =(U56-U59)/U59 -> -0.1819667059 | W60: =(W56-W59)/W59 -> 0.02528124597 | X60: =(X56-X59)/X59 -> -0.008528072818 | Y60: =(Y56-Y59)/Y59 -> 0.0383441827 | Z60: =(Z56-Z59)/Z59 -> -0.08470103474 | AB60: 0.4008968052 | AD60: =(AD56-AD59)/AD59 -> 0.4532575411 | AG60: =(AG56-AG59)/AG59 -> 0.4089625034 | AH60: =(AH56-AH59)/AH59 -> 0.2788089212 | AI60: =(AI56-AI59)/AI59 -> 0.1145349558 | AJ60: =(AJ56-AJ59)/AJ59 -> -0.1839676763 | AL60: =(AL56-AL59)/AL59 -> 0.2169235408 | AM60: =(AM56-AM59)/AM59 -> 0.1564702174 | AN60: 0.02667808457 | AO60: -0.09513811075 | AZ60: =(AZ56-AZ59)/AZ59 -> -0.2155984469 | BA60: =(BA56-BA59)/BA59 -> -0.2633400289 | BB60: -0.3307180268 | BC60: -0.3880126507
B61: Regression q-value as proposed in report | C61: =70/C6+0.11 -> 1.781573451 | D61: =70/D6+0.11 -> 0.7620617746 | E61: =70/E6+0.11 -> 0.4908280621 | F61: =70/F6+0.11 -> 0.3211690318 | R61: =106/R6+2.15*0.157 -> 1.630232927 | S61: =106/S6+2.15*0.157 -> 1.294289144 | T61: =106/T6+2.15*0.157 -> 0.8069670372 | U61: =106/U6+2.15*0.157 -> 0.6361449137 | AG61: =176/AG6+1.35*0.081 -> 1.152646818 | AH61: =176/AH6+1.35*0.081 -> 0.9920776284 | AI61: =176/AI6+1.35*0.081 -> 0.6207043918 | AJ61: =176/AJ6+1.35*0.081 -> 0.3757782941
B62: Regression error | C62: =(C61-C56)/C56 -> -0.02761694214 | D62: =(D61-D56)/D56 -> -0.01727600338 | E62: 0.009336281384 | F62: 0.006615314301 | R62: =(R61-R56)/R56 -> -0.0384524398 | S62: =(S61-S56)/S56 -> 0.02350725349 | T62: 0.007453854779 | U62: 0.1516657924 | AG62: =(AG61-AG56)/AG56 -> -0.1791013271 | AH62: =(AH61-AH56)/AH56 -> -0.1431087515 | AI62: =(AI61-AI56)/AI56 -> -0.1979395939 | AJ62: =(AJ61-AJ56)/AJ56 -> -0.1705947212
A63: M | B63: Current M value | C63: 0.233 | D63: 0.233 | E63: 0.233 | F63: 0.233 | H63: 0.233 | I63: 0.233 | J63: 0.233 | K63: 0.233 | M63: 0.233 | O63: 0.233 | R63: 0.539 | S63: 0.539 | T63: 0.539 | U63: 0.539 | W63: 0.539 | X63: 0.539 | Y63: 0.539 | Z63: 0.539 | AB63: 0.233 | AD63: 0.233 | AG63: 0.777 | AH63: =AG63 -> 0.777 | AI63: =AH63 -> 0.777 | AJ63: 0.777 | AL63: 0.777 | AM63: =AL63 -> 0.777 | AN63: =AM63 -> 0.777 | AO63: 0.777 | AZ63: 0.777 | BA63: =AZ63 -> 0.777 | BB63: =BA63 -> 0.777 | BC63: =BB63 -> 0.777
A64: N | B64: Current N value | C64: 245 | D64: 245 | E64: 245 | F64: 245 | H64: 245 | I64: 245 | J64: 245 | K64: 245 | M64: 245 | O64: 245 | R64: 315 | S64: 315 | T64: 315 | U64: 315 | W64: 315 | X64: 315 | Y64: 315 | Z64: 315 | AB64: 245 | AD64: 245 | AG64: 303 | AH64: =AG64 -> 303 | AI64: =AH64 -> 303 | AJ64: 303 | AL64: 303 | AM64: =AL64 -> 303 | AN64: =AM64 -> 303 | AO64: 303 | AZ64: 303 | BA64: =AZ64 -> 303 | BB64: 303 | BC64: 303
A66: U cond | B66: Check on condenser heat transfer [W/m2/K] | C66: =(C45+C45/C50)/(2*C14)/C39 -> 16.16084649 | D66: =(D45+D45/D50)/(2*D14)/D39 -> 14.71037891 | E66: 11.83081485 | F66: 7.608864346 | H66: 16.15818677 | I66: 18.01541005 | J66: 17.13612863 | K66: 12.73221636 | M66: 12.7382808 | O66: 12.74990268 | R66: 11.91875267 | S66: 13.68162269 | T66: 10.91574642 | U66: 11.90881977 | W66: 11.91413248 | X66: 11.04898391 | Y66: 7.485891563 | Z66: 7.76412553 | AB66: 11.90713091 | AD66: 11.89069742 | AG66: 10.36891684 | AH66: 8.713764196 | AI66: 8.5186063 | AJ66: 7.772845964 | AL66: 10.64026979 | AM66: 9.226682693 | AN66: 8.171560679 | AO66: 7.856984702 | AZ66: =(AZ45+AZ45/AZ50)/(2*AZ14)/AZ39 -> 10.74101894 | BA66: 9.316824984 | BB66: 8.245143423 | BC66: 7.933605924
C68: A++ line | H68: Modifications | R68: A++ line | W68: Modifications | AG68: A++ line | AL68: Modifications
H69: Volume corrected | W69: Volume corrected | AL69: Volume corrected
C70: 0 | D70: =C64*0.33 -> 80.85 | H70: Area corrected | R70: 0 | S70: =R64*0.33 -> 103.95 | W70: Area corrected | AG70: 0 | AH70: =AG64*0.33 -> 99.99 | AL70: Area corrected
C71: 400 | D71: =(C64+C71*C63)*0.33 -> 111.606 | H71: Compressor capacity a function of volume | R71: 500 | S71: =(R64+R71*R63*2.15)*0.33 -> 295.16025 | W71: No thicker insulation then 10 cm | AG71: 700 | AH71: =(AG64+AG71*AG63*req)*0.33 -> 382.682025 | AL71: model for combi-heat load split per compartment
H72: Wall thickness reduced for two largest appliances | W72: Delta-T condenser increased | AL72: No thicker insulation then 7 cm
AL73: Appliance 4 reduced width to 0.7 m
AL74: Tevaporator set
AL75: dT condenser reduced
A93: Analysis to find a q-ref formula using combi factors
B94: Auto Defrost | C94: N
B95: Build In | C95: N
B96: M fresh | C96: 0.13
B97: Nfresh | C97: 72
B98: Mfrozen | C98: 0.15
B99: Nfrozen | C99: 115
B100: Combi constant | C100: 0.87
B101: Combi, multiplier rc | C101: N
B103: Final q-ref relation proposed
B104: rc fresh | C104: =(24-4)/20 -> 1 | D104: =(24-4)/20 -> 1 | E104: 1 | F104: 1 | H104: =(24-4)/20 -> 1 | I104: =(24-4)/20 -> 1 | J104: 1 | K104: 1 | R104: =(24-4)/20 -> 1 | S104: =(24-4)/20 -> 1 | T104: 1 | U104: 1 | W104: =(24-4)/20 -> 1 | X104: =(24-4)/20 -> 1 | Y104: 1 | Z104: 1 | AG104: =(24-4)/20 -> 1 | AH104: =(24-4)/20 -> 1 | AI104: 1 | AJ104: 1 | AL104: =(24-4)/20 -> 1 | AM104: =(24-4)/20 -> 1 | AN104: 1 | AO104: 1 | AZ104: =(24-17)/20 -> 0.35 | BA104: =(24-17)/20 -> 0.35 | BB104: 0.35 | BC104: 0.35
B105: rc frozen | C105: =(24--18)/20 -> 2.1 | D105: =(24--18)/20 -> 2.1 | E105: 2.1 | F105: 2.1 | H105: =(24--18)/20 -> 2.1 | I105: =(24--18)/20 -> 2.1 | J105: 2.1 | K105: 2.1 | R105: =(24--18)/20 -> 2.1 | S105: =(24--18)/20 -> 2.1 | T105: 2.1 | U105: 2.1 | W105: =(24--18)/20 -> 2.1 | X105: =(24--18)/20 -> 2.1 | Y105: 2.1 | Z105: 2.1 | AG105: =(24--18)/20 -> 2.1 | AH105: =(24--18)/20 -> 2.1 | AI105: 2.1 | AJ105: 2.1 | AL105: =(24--18)/20 -> 2.1 | AM105: =(24--18)/20 -> 2.1 | AN105: 2.1 | AO105: 2.1 | AZ105: =(24--18)/20 -> 2.1 | BA105: =(24--18)/20 -> 2.1 | BB105: 2.1 | BC105: 2.1
B106: Cc fresh | C106: 1 | D106: 1 | E106: 1 | F106: 1 | H106: 1 | I106: 1 | J106: 1 | K106: 1 | R106: 1 | S106: 1 | T106: 1 | U106: 1 | W106: 1 | X106: 1 | Y106: 1 | Z106: 1 | AG106: =Cc_Constant*IF(Cc_Mult_rc="Y",AG104,1)*rVFresh*AG6/AG6 -> 0.435 | AH106: =Cc_Constant*IF(Cc_Mult_rc="Y",AH104,1)*rVFresh*AH6/AH6 -> 0.435 | AI106: =Cc_Constant*IF(Cc_Mult_rc="Y",AI104,1)*rVFresh*AI6/AI6 -> 0.435 | AJ106: =Cc_Constant*IF(Cc_Mult_rc="Y",AJ104,1)*rVFresh*AJ6/AJ6 -> 0.435 | AL106: =Cc_Constant*IF(Cc_Mult_rc="Y",AL104,1)*rVFresh*AL6/AL6 -> 0.435 | AM106: =Cc_Constant*IF(Cc_Mult_rc="Y",AM104,1)*rVFresh*AM6/AM6 -> 0.435 | AN106: =Cc_Constant*IF(Cc_Mult_rc="Y",AN104,1)*rVFresh*AN6/AN6 -> 0.435 | AO106: =Cc_Constant*IF(Cc_Mult_rc="Y",AO104,1)*rVFresh*AO6/AO6 -> 0.435 | AZ106: =Cc_Constant*IF(Cc_Mult_rc="Y",AZ104,1)*rVFresh*AZ6/AZ6 -> 0.435 | BA106: =Cc_Constant*IF(Cc_Mult_rc="Y",BA104,1)*rVFresh*BA6/BA6 -> 0.435 | BB106: =Cc_Constant*IF(Cc_Mult_rc="Y",BB104,1)*rVFresh*BB6/BB6 -> 0.435 | BC106: =Cc_Constant*IF(Cc_Mult_rc="Y",BC104,1)*rVFresh*BC6/BC6 -> 0.435
B107: Cc frozen | C107: 1 | D107: 1 | E107: 1 | F107: 1 | H107: 1 | I107: 1 | J107: 1 | K107: 1 | R107: 1 | S107: 1 | T107: 1 | U107: 1 | W107: 1 | X107: 1 | Y107: 1 | Z107: 1 | AG107: =Cc_Constant*IF(Cc_Mult_rc="Y",AG105,1)*(1-rVFresh)*AG11/AG11 -> 0.435 | AH107: =Cc_Constant*IF(Cc_Mult_rc="Y",AH105,1)*(1-rVFresh)*AH11/AH11 -> 0.435 | AI107: =Cc_Constant*IF(Cc_Mult_rc="Y",AI105,1)*(1-rVFresh)*AI11/AI11 -> 0.435 | AJ107: =Cc_Constant*IF(Cc_Mult_rc="Y",AJ105,1)*(1-rVFresh)*AJ11/AJ11 -> 0.435 | AL107: =Cc_Constant*IF(Cc_Mult_rc="Y",AL105,1)*(1-rVFresh)*AL11/AL11 -> 0.435 | AM107: =Cc_Constant*IF(Cc_Mult_rc="Y",AM105,1)*(1-rVFresh)*AM11/AM11 -> 0.435 | AN107: =Cc_Constant*IF(Cc_Mult_rc="Y",AN105,1)*(1-rVFresh)*AN11/AN11 -> 0.435 | AO107: =Cc_Constant*IF(Cc_Mult_rc="Y",AO105,1)*(1-rVFresh)*AO11/AO11 -> 0.435 | AZ107: =Cc_Constant*IF(Cc_Mult_rc="Y",AZ105,1)*(1-rVFresh)*AZ11/AZ11 -> 0.435 | BA107: =Cc_Constant*IF(Cc_Mult_rc="Y",BA105,1)*(1-rVFresh)*BA11/BA11 -> 0.435 | BB107: =Cc_Constant*IF(Cc_Mult_rc="Y",BB105,1)*(1-rVFresh)*BB11/BB11 -> 0.435 | BC107: =Cc_Constant*IF(Cc_Mult_rc="Y",BC105,1)*(1-rVFresh)*BC11/BC11 -> 0.435
B108: qref | C108: =1*(1*IF(bBuiltIn="Y",1.04,1)*C106*(NFresh/C6+C104*MFresh)) -> 1.849332693 | D108: =1*(1*IF(bBuiltIn="Y",1.04,1)*D106*(NFresh/D6+D104*MFresh)) -> 0.800692111 | E108: =1*(1*IF(bBuiltIn="Y",1.04,1)*E106*(NFresh/E6+E104*MFresh)) -> 0.5217088639 | F108: =1*(1*IF(bBuiltIn="Y",1.04,1)*F106*(NFresh/F6+F104*MFresh)) -> 0.3472024327 | H108: =1*(1*IF(bBuiltIn="Y",1.04,1)*H106*(NFresh/H6+H104*MFresh)) -> 1.738697261 | I108: =1*(1*IF(bBuiltIn="Y",1.04,1)*I106*(NFresh/I6+I104*MFresh)) -> 0.7808075003 | J108: =1*(1*IF(bBuiltIn="Y",1.04,1)*J106*(NFresh/J6+J104*MFresh)) -> 0.4999421965 | K108: =1*(1*IF(bBuiltIn="Y",1.04,1)*K106*(NFresh/K6+K104*MFresh)) -> 0.3330909311 | R108: =1*(IF(bAutoDef="Y",1.2,1)*IF(bBuiltIn="Y",1.1,1)*R107*(NFrozen/R6+R105*MFrozen)) -> 1.717439024 | S108: =1*(IF(bAutoDef="Y",1.2,1)*IF(bBuiltIn="Y",1.1,1)*S107*(NFrozen/S6+S105*MFrozen)) -> 1.352971713 | T108: =1*(IF(bAutoDef="Y",1.2,1)*IF(bBuiltIn="Y",1.1,1)*T107*(NFrozen/T6+T105*MFrozen)) -> 0.8242732007 | U108: =1*(IF(bAutoDef="Y",1.2,1)*IF(bBuiltIn="Y",1.1,1)*U107*(NFrozen/U6+U105*MFrozen)) -> 0.6389473121 | W108: =1*(IF(bAutoDef="Y",1.2,1)*IF(bBuiltIn="Y",1.1,1)*W107*(NFrozen/W6+W105*MFrozen)) -> 1.621818182 | X108: =1*(IF(bAutoDef="Y",1.2,1)*IF(bBuiltIn="Y",1.1,1)*X107*(NFrozen/X6+X105*MFrozen)) -> 1.289634088 | Y108: =1*(IF(bAutoDef="Y",1.2,1)*IF(bBuiltIn="Y",1.1,1)*Y107*(NFrozen/Y6+Y105*MFrozen)) -> 0.7506060606 | Z108: =1*(IF(bAutoDef="Y",1.2,1)*IF(bBuiltIn="Y",1.1,1)*Z107*(NFrozen/Z6+Z105*MFrozen)) -> 0.5748870056 | AG108: =(1*IF(bBuiltIn="Y",1.04,1)*AG106*(NFresh/(rVFresh*AG6)+AG104*MFresh)+(IF(bAutoDef="Y",1.2,1)*IF(bBuiltIn="Y",1.1,1)*AG107*(NFrozen/((1-rVFresh)*AG6)+AG105*MFrozen))) -> 1.157972496 | AH108: =(1*IF(bBuiltIn="Y",1.04,1)*AH106*(NFresh/(rVFresh*AH6)+AH104*MFresh)+(IF(bAutoDef="Y",1.2,1)*IF(bBuiltIn="Y",1.1,1)*AH107*(NFrozen/((1-rVFresh)*AH6)+AH105*MFrozen))) -> 1.009546351 | AI108: =(1*IF(bBuiltIn="Y",1.04,1)*AI106*(NFresh/(rVFresh*AI6)+AI104*MFresh)+(IF(bAutoDef="Y",1.2,1)*IF(bBuiltIn="Y",1.1,1)*AI107*(NFrozen/((1-rVFresh)*AI6)+AI105*MFrozen))) -> 0.666258216 | AJ108: =(1*IF(bBuiltIn="Y",1.04,1)*AJ106*(NFresh/(rVFresh*AJ6)+AJ104*MFresh)+(IF(bAutoDef="Y",1.2,1)*IF(bBuiltIn="Y",1.1,1)*AJ107*(NFrozen/((1-rVFresh)*AJ6)+AJ105*MFrozen))) -> 0.4398546543 | AL108: =(1*IF(bBuiltIn="Y",1.04,1)*AL106*(NFresh/(rVFresh*AL6)+AL104*MFresh)+(IF(bAutoDef="Y",1.2,1)*IF(bBuiltIn="Y",1.1,1)*AL107*(NFrozen/((1-rVFresh)*AL6)+AL105*MFrozen))) -> 1.133458071 | AM108: =(1*IF(bBuiltIn="Y",1.04,1)*AM106*(NFresh/(rVFresh*AM6)+AM104*MFresh)+(IF(bAutoDef="Y",1.2,1)*IF(bBuiltIn="Y",1.1,1)*AM107*(NFrozen/((1-rVFresh)*AM6)+AM105*MFrozen))) -> 0.9411522322 | AN108: =(1*IF(bBuiltIn="Y",1.04,1)*AN106*(NFresh/(rVFresh*AN6)+AN104*MFresh)+(IF(bAutoDef="Y",1.2,1)*IF(bBuiltIn="Y",1.1,1)*AN107*(NFrozen/((1-rVFresh)*AN6)+AN105*MFrozen))) -> 0.6586906142 | AO108: =(1*IF(bBuiltIn="Y",1.04,1)*AO106*(NFresh/(rVFresh*AO6)+AO104*MFresh)+(IF(bAutoDef="Y",1.2,1)*IF(bBuiltIn="Y",1.1,1)*AO107*(NFrozen/((1-rVFresh)*AO6)+AO105*MFrozen))) -> 0.4954430976 | AZ108: =(1*IF(bBuiltIn="Y",1.04,1)*AZ106*(NFresh/(rVFresh*AZ6)+AZ104*MFresh)+(IF(bAutoDef="Y",1.2,1)*IF(bBuiltIn="Y",1.1,1)*AZ107*(NFrozen/((1-rVFresh)*AZ6)+AZ105*MFrozen))) -> 1.096700571 | BA108: =(1*IF(bBuiltIn="Y",1.04,1)*BA106*(NFresh/(rVFresh*BA6)+BA104*MFresh)+(IF(bAutoDef="Y",1.2,1)*IF(bBuiltIn="Y",1.1,1)*BA107*(NFrozen/((1-rVFresh)*BA6)+BA105*MFrozen))) -> 0.9043947322 | BB108: =(1*IF(bBuiltIn="Y",1.04,1)*BB106*(NFresh/(rVFresh*BB6)+BB104*MFresh)+(IF(bAutoDef="Y",1.2,1)*IF(bBuiltIn="Y",1.1,1)*BB107*(NFrozen/((1-rVFresh)*BB6)+BB105*MFrozen))) -> 0.6219331142 | BC108: =(1*IF(bBuiltIn="Y",1.04,1)*BC106*(NFresh/(rVFresh*BC6)+BC104*MFresh)+(IF(bAutoDef="Y",1.2,1)*IF(bBuiltIn="Y",1.1,1)*BC107*(NFrozen/((1-rVFresh)*BC6)+BC105*MFrozen))) -> 0.4586855976
B109: AE | C109: =C108*C6 -> 77.44397256 | D109: =D108*D6 -> 85.95573296 | E109: =E108*E6 -> 95.89529792 | F109: =F108*F6 -> 115.09344 | H109: =H108*H6 -> 77.81837256 | I109: =I108*I6 -> 86.38213296 | J109: =J108*J6 -> 97.30125 | K109: =K108*K6 -> 118.08773 | R109: =R108*R6 -> 140.83 | S109: =S108*S6 -> 149.899795 | T109: =T108*T6 -> 186.13078 | U109: =U108*U6 -> 226.82374 | W109: =W108*W6 -> 142.72 | X109: =X108*X6 -> 152.167795 | Y109: =Y108*Y6 -> 198.16 | Z109: =Z108*Z6 -> 254.3875 | AG109: =AG108*AG6 -> 195.3453282 | AH109: =AH108*AH6 -> 201.2853706 | AI109: =AI108*AI6 -> 229.3154178 | AJ109: =AJ108*AJ6 -> 290.563806 | AL109: =AL108*AL6 -> 196.1970582 | AM109: =AM108*AM6 -> 204.8163722 | AN109: =AN108*AN6 -> 230.3994378 | AO109: =AO108*AO6 -> 267.0160848 | AZ109: =AZ108*AZ6 -> 189.834482 | BA109: =BA108*BA6 -> 196.8170948 | BB109: =BB108*BB6 -> 217.5422524 | BC109: =BC108*BC6 -> 247.2058507
B110: ratio AE / SAE | C110: =C109/C54 -> 0.3039912124 | D110: =D109/D54 -> 0.3183392773 | E110: =E109/E54 -> 0.3331690771 | F110: =F109/F54 -> 0.3571704855 | H110: =H109/H54 -> 0.3046583653 | I110: =I109/I54 -> 0.3190155248 | J110: =J109/J54 -> 0.3351198413 | K110: =K109/K54 -> 0.360459423 | R110: =R109/R54 -> 0.3434662754 | S110: =S109/S54 -> 0.3380747437 | T110: =T109/T54 -> 0.3227614244 | U110: =U109/U54 -> 0.3122628905 | W110: =W109/W54 -> 0.3422715975 | X110: =X109/X54 -> 0.3368510184 | Y110: =Y109/Y54 -> 0.3191309126 | Z110: =Z109/Z54 -> 0.3073088033 | AG110: =AG109/AG54 -> 0.3834466231 | AH110: =AH109/AH54 -> 0.3679814377 | AI110: =AI109/AI54 -> 0.3166448807 | AJ110: =AJ109/AJ54 -> 0.2614361252 | AL110: =AL109/AL54 -> 0.381090546 | AM110: =AM109/AM54 -> 0.3597551489 | AN110: =AN109/AN54 -> 0.3151593716 | AO110: =AO109/AO54 -> 0.2774059952 | AZ110: =AZ109/AZ54 -> 0.4000879487 | BA110: =BA109/BA54 -> 0.3795208231 | BB110: =BB109/BB54 -> 0.334926552 | BC110: =BC109/BC54 -> 0.2953763071
B112: Difference with q-model | C112: =(C108-C56)/C56 -> 0.009366062047 | D112: =(D108-D56)/D56 -> 0.03254011371 | E112: 0.072839402 | F112: 0.08820979398 | H112: =(H108-H56)/H56 -> 0.003361948834 | I112: =(I108-I56)/I56 -> 0.02329466006 | J112: 0.02071264967 | K112: 0.03164931967 | R112: =(R108-R56)/R56 -> 0.01298365191 | S112: =(S108-S56)/S56 -> 0.06991267622 | T112: 0.0290596458 | U112: 0.1567392061 | W112: =(W108-W56)/W56 -> 0.01161185106 | X112: =(X108-X56)/X56 -> 0.02954065958 | Y112: -0.06864853906 | Z112: 0.01741489196 | AG112: =(AG108-AG56)/AG56 -> -0.1753084548 | AH112: =(AH108-AH56)/AH56 -> -0.1280204201 | AI112: -0.1390759558 | AJ112: -0.02916752256 | AL112: =(AL108-AL56)/AL56 -> -0.05103336609 | AM112: =(AM108-AM56)/AM56 -> -0.05733230188 | AN112: -0.06978787889 | AO112: -0.07099167509 | AZ112: =(AZ108-AZ56)/AZ56 -> 0.5456212683 | BA112: =(BA108-BA56)/BA56 -> 0.5611858191 | BB112: 0.5164444678 | BC112: 0.4625787925

Sheet qRef-evaluation
C1: Proposed model | G1: Current | I1: Current M and N factors
D2: Fresh | E2: Frozen | G2: Actual | I2: Category | J2: M | K2: N
B3: Built in | C3: N | D3: =IF(C3="Y",1.04,1) -> 1 | E3: =IF(C3="Y",1.1,1) -> 1 | G3: =IF(C3="Y",1.2,1) -> 1 | I3: 1 | J3: 0.233 | K3: 245
B4: Auto Defrost | C4: N | D4: 1 | E4: =IF(C4="Y",1.2,1) -> 1 | G4: =IF(C4="Y",1.2,1) -> 1 | I4: 2 | J4: 0.233 | K4: 245
B5: Door | D5: 1 | I5: 3 | J5: 0.233 | K5: 245
B6: Combi | I6: 4 | J6: 0.643 | K6: 191
B7: Nc | D7: =NFresh -> 72 | E7: =NFrozen -> 115 | I7: 5 | J7: 0.45 | K7: 245
B8: Mc | D8: =MFresh -> 0.13 | E8: =MFrozen -> 0.15 | I8: 6 | J8: 0.777 | K8: 303
B9: Cc | C9: =Cc_Constant -> 0.87 | I9: 7 | J9: 0.777 | K9: 303
B10: Target t | D10: 5 | E10: -18 | I10: 8 | J10: 0.539 | K10: 315
B11: rc | D11: =(24-D10)/20 -> 0.95 | E11: =(24-E10)/20 -> 2.1 | I11: 9 | J11: 0.472 | K11: 286
B12: Climate class | C12: N | G12: =IF(C12="T",1.2,IF(C12="ST",1.1,1)) -> 1
B13: Chill | C13: N | G13: =IF(C13="Y",50,0) -> 0
B15: Category | C15: 1 | E15: M | F15: =INDEX($J$3:$J$11,C15) -> 0.233 | H15: Category | I15: 8 | K15: M | L15: =INDEX($J$3:$J$11,I15) -> 0.539 | N15: Category | O15: 9 | Q15: M | R15: =INDEX($J$3:$J$11,O15) -> 0.472 | T15: Ratio of SAE | W15: Category | X15: 7 | Z15: M | AA15: =INDEX($J$3:$J$11,X15) -> 0.777 | AO15: TotVol ? | AP15: N | AY15: TRUE | BI15: TRUE
E16: N | F16: =INDEX($K$3:$K$11,C15) -> 245 | K16: N | L16: =INDEX($K$3:$K$11,I15) -> 315 | Q16: N | R16: =INDEX($K$3:$K$11,O15) -> 286 | U16: Vfrozen | Z16: N | AA16: =INDEX($K$3:$K$11,X15) -> 303 | AE16: SAE Actual | AO16: qref | AY16: Combi-factor Fresh | BI16: Combi factor frozen | BT16: Cat 7, constant fresh food ratio
B18: V | C18: qref | D18: q | E18: SAE Actual | F18: Ratio | H18: V | I18: qref | J18: q | K18: SAE Actual | L18: Ratio | N18: V | O18: qref | P18: q | Q18: SAE Actual | R18: Ratio | T18: Vfresh | U18: 20 | V18: 40 | W18: 60 | X18: 80 | Y18: 100 | Z18: 120 | AA18: 140 | AB18: 160 | AC18: 180 | AE18: =U18 -> 20 | AF18: 40 | AG18: 60 | AH18: 80 | AI18: 100 | AJ18: 120 | AK18: 140 | AL18: 160 | AM18: 180 | AO18: =U18 -> 20 | AP18: =V18 -> 40 | AQ18: 60 | AR18: 80 | AS18: 100 | AT18: 120 | AU18: 140 | AV18: 160 | AW18: 180 | AY18: =U18 -> 20 | AZ18: =V18 -> 40 | BA18: 60 | BB18: 80 | BC18: 100 | BD18: 120 | BE18: 140 | BF18: 160 | BG18: 180 | BI18: =AY18 -> 20 | BJ18: =AZ18 -> 40 | BK18: 60 | BL18: 80 | BM18: 100 | BN18: 120 | BO18: 140 | BP18: 160 | BQ18: 180 | BT18: Vfresh | BU18: Vfrozen | BV18: qref | BW18: q | BX18: SAE Actual | BY18: Ratio
B19: 50 | C19: =Door*(Ac_FF*Bc_FF*(Nc_FF/$B19+rc_FF*Mc_FF)) -> 1.5635 | D19: =C19*B19 -> 78.175 | E19: =(B19*((25-5)/20)*CC*Bc_Actual*$F$15+$F$16+Ch) -> 256.65 | F19: =D19/E19 -> 0.3045977011 | H19: =B19 -> 50 | I19: =Door*(Ac_FR*BC_FR*(Nc_FR/$H19+rc_FR*Mc_FR)) -> 2.615 | J19: =I19*H19 -> 130.75 | K19: =(H19*((25--18)/20)*FF_Actual*CC*Bc_Actual*$L$15+$L$16+Ch) -> 372.9425 | L19: =J19/K19 -> 0.3505902384 | N19: =B19 -> 50 | O19: =Door/$H19*(Ac_FR*BC_FR*(Nc_FR+rc_FR*Mc_FR*$H19)) -> 2.615 | P19: =O19*N19 -> 130.75 | Q19: =(N19*((25--18)/20)*FF_Actual*CC*Bc_Actual*$R$15+$R$16+Ch) -> 336.74 | R19: =P19/Q19 -> 0.3882817604 | T19: =N19 -> 50 | U19: =AO19*($T19+U$18)/AE19 -> 0.4624601278 | V19: 0.4380634103 | W19: 0.4173543203 | X19: 0.3995555149 | Y19: 0.3840937896 | Z19: 0.370537196 | AA19: 0.3585540543 | AB19: 0.3478854545 | AC19: 0.3383263378 | AE19: =(($T19*((25-5)/20)+U$18*((25+18)/20)*FF_Actual)*CC*Bc_Actual*$AA$15+$AA$16+Ch) -> 375.261 | AF19: =(($T19*((25-5)/20)+V$18*((25+18)/20)*FF_Actual)*CC*Bc_Actual*$AA$15+$AA$16+Ch) -> 408.672 | AG19: =(($T19*((25-5)/20)+W$18*((25+18)/20)*FF_Actual)*CC*Bc_Actual*$AA$15+$AA$16+Ch) -> 442.083 | AH19: =(($T19*((25-5)/20)+X$18*((25+18)/20)*FF_Actual)*CC*Bc_Actual*$AA$15+$AA$16+Ch) -> 475.494 | AI19: =(($T19*((25-5)/20)+Y$18*((25+18)/20)*FF_Actual)*CC*Bc_Actual*$AA$15+$AA$16+Ch) -> 508.905 | AJ19: =(($T19*((25-5)/20)+Z$18*((25+18)/20)*FF_Actual)*CC*Bc_Actual*$AA$15+$AA$16+Ch) -> 542.316 | AK19: =(($T19*((25-5)/20)+AA$18*((25+18)/20)*FF_Actual)*CC*Bc_Actual*$AA$15+$AA$16+Ch) -> 575.727 | AL19: =(($T19*((25-5)/20)+AB$18*((25+18)/20)*FF_Actual)*CC*Bc_Actual*$AA$15+$AA$16+Ch) -> 609.138 | AM19: =(($T19*((25-5)/20)+AC$18*((25+18)/20)*FF_Actual)*CC*Bc_Actual*$AA$15+$AA$16+Ch) -> 642.549 | AO19: =Door*(Ac_FF*Bc_FF*AY19*(Nc_FF/IF(TotVol="Y",($T19+U$18),$T19)+rc_FF*Mc_FF)+Ac_FR*BC_FR*BI19*(Nc_FR/IF(TotVol="Y",($T19+U$18),U$18)+rc_FR*Mc_FR)) -> 2.479189286 | AP19: =Door*(Ac_FF*Bc_FF*AZ19*(Nc_FF/IF(TotVol="Y",($T19+V$18),$T19)+rc_FF*Mc_FF)+Ac_FR*BC_FR*BJ19*(Nc_FR/IF(TotVol="Y",($T19+V$18),V$18)+rc_FR*Mc_FR)) -> 1.989158333 | AQ19: =Door*(Ac_FF*Bc_FF*BA19*(Nc_FF/IF(TotVol="Y",($T19+W$18),$T19)+rc_FF*Mc_FF)+Ac_FR*BC_FR*BK19*(Nc_FR/IF(TotVol="Y",($T19+W$18),W$18)+rc_FR*Mc_FR)) -> 1.677320455 | AR19: =Door*(Ac_FF*Bc_FF*BB19*(Nc_FF/IF(TotVol="Y",($T19+X$18),$T19)+rc_FF*Mc_FF)+Ac_FR*BC_FR*BL19*(Nc_FR/IF(TotVol="Y",($T19+X$18),X$18)+rc_FR*Mc_FR)) -> 1.461432692 | AS19: =Door*(Ac_FF*Bc_FF*BC19*(Nc_FF/IF(TotVol="Y",($T19+Y$18),$T19)+rc_FF*Mc_FF)+Ac_FR*BC_FR*BM19*(Nc_FR/IF(TotVol="Y",($T19+Y$18),Y$18)+rc_FR*Mc_FR)) -> 1.303115 | AT19: =Door*(Ac_FF*Bc_FF*BD19*(Nc_FF/IF(TotVol="Y",($T19+Z$18),$T19)+rc_FF*Mc_FF)+Ac_FR*BC_FR*BN19*(Nc_FR/IF(TotVol="Y",($T19+Z$18),Z$18)+rc_FR*Mc_FR)) -> 1.182048529 | AU19: =Door*(Ac_FF*Bc_FF*BE19*(Nc_FF/IF(TotVol="Y",($T19+AA$18),$T19)+rc_FF*Mc_FF)+Ac_FR*BC_FR*BO19*(Nc_FR/IF(TotVol="Y",($T19+AA$18),AA$18)+rc_FR*Mc_FR)) -> 1.086469737 | AV19: =Door*(Ac_FF*Bc_FF*BF19*(Nc_FF/IF(TotVol="Y",($T19+AB$18),$T19)+rc_FF*Mc_FF)+Ac_FR*BC_FR*BP19*(Nc_FR/IF(TotVol="Y",($T19+AB$18),AB$18)+rc_FR*Mc_FR)) -> 1.009096429 | AW19: =Door*(Ac_FF*Bc_FF*BG19*(Nc_FF/IF(TotVol="Y",($T19+AC$18),$T19)+rc_FF*Mc_FF)+Ac_FR*BC_FR*BQ19*(Nc_FR/IF(TotVol="Y",($T19+AC$18),AC$18)+rc_FR*Mc_FR)) -> 0.9451793478 | AY19: =IF($AY$15,Cc_Constant*$T19/($T19+U$18),1) -> 0.6214285714 | AZ19: =IF($AY$15,Cc_Constant*$T19/($T19+V$18),1) -> 0.4833333333 | BA19: =IF($AY$15,Cc_Constant*$T19/($T19+W$18),1) -> 0.3954545455 | BB19: =IF($AY$15,Cc_Constant*$T19/($T19+X$18),1) -> 0.3346153846 | BC19: =IF($AY$15,Cc_Constant*$T19/($T19+Y$18),1) -> 0.29 | BD19: =IF($AY$15,Cc_Constant*$T19/($T19+Z$18),1) -> 0.2558823529 | BE19: =IF($AY$15,Cc_Constant*$T19/($T19+AA$18),1) -> 0.2289473684 | BF19: =IF($AY$15,Cc_Constant*$T19/($T19+AB$18),1) -> 0.2071428571 | BG19: =IF($AY$15,Cc_Constant*$T19/($T19+AC$18),1) -> 0.1891304348 | BI19: =IF($BI$15,Cc_Constant*U$18/($T19+U$18),1) -> 0.2485714286 | BJ19: =IF($BI$15,Cc_Constant*V$18/($T19+V$18),1) -> 0.3866666667 | BK19: =IF($BI$15,Cc_Constant*W$18/($T19+W$18),1) -> 0.4745454545 | BL19: =IF($BI$15,Cc_Constant*X$18/($T19+X$18),1) -> 0.5353846154 | BM19: =IF($BI$15,Cc_Constant*Y$18/($T19+Y$18),1) -> 0.58 | BN19: =IF($BI$15,Cc_Constant*Z$18/($T19+Z$18),1) -> 0.6141176471 | BO19: =IF($BI$15,Cc_Constant*AA$18/($T19+AA$18),1) -> 0.6410526316 | BP19: =IF($BI$15,Cc_Constant*AB$18/($T19+AB$18),1) -> 0.6628571429 | BQ19: =IF($BI$15,Cc_Constant*AC$18/($T19+AC$18),1) -> 0.6808695652 | BT19: 50 | BU19: =BT19/rVFresh*(1-rVFresh) -> 50 | BV19: =Door*(Ac_FF*Bc_FF*Cc_Constant*$BT19/($BT19+BU19)*(Nc_FF/$BT19+rc_FF*Mc_FF))+Ac_FR*BC_FR*Cc_Constant*$BU19/($BT19+BU19)*(Nc_FR/$BU19+rc_FR*Mc_FR) -> 1.8176475 | BW19: =BV19*(BT19+BU19) -> 181.76475 | BX19: =(BT19*(25-5)/20+BU19*(25--18)/20)*FF_Actual*CC*Bc_Actual*$AA$15+$AA$16+Ch -> 425.3775 | BY19: =BW19/BX19 -> 0.4273022198
B20: 70 | C20: 1.152071429 | D20: =C20*B20 -> 80.645 | E20: 261.31 | F20: =D20/E20 -> 0.3086181164 | H20: =B20 -> 70 | I20: 1.957857143 | J20: =I20*H20 -> 137.05 | K20: 396.1195 | L20: =J20/K20 -> 0.3459814526 | N20: =B20 -> 70 | O20: 1.957857143 | P20: =O20*N20 -> 137.05 | Q20: 357.036 | R20: =P20/Q20 -> 0.3838548494 | T20: =N20 -> 70 | U20: 0.449569346 | V20: 0.4270816243 | W20: 0.4078775542 | X20: 0.3912868559 | Y20: 0.3768100563 | Z20: 0.36406734 | AA20: 0.3527647408 | AB20: 0.3426711842 | AC20: 0.3336025218 | AE20: 390.801 | AF20: 424.212 | AG20: 457.623 | AH20: 491.034 | AI20: 524.445 | AJ20: 557.856 | AK20: 591.267 | AL20: 624.678 | AM20: 658.089 | AO20: 1.952135 | AP20: 1.647028636 | AQ20: 1.435801154 | AR20: 1.280901 | AS20: 1.162447941 | AT20: 1.068932368 | AU20: 0.9932292857 | AV20: 0.9306919565 | AW20: 0.8781606 | AY20: 0.6766666667 | AZ20: 0.5536363636 | BA20: 0.4684615385 | BB20: 0.406 | BC20: 0.3582352941 | BD20: 0.3205263158 | BE20: 0.29 | BF20: 0.2647826087 | BG20: 0.2436 | BI20: 0.1933333333 | BJ20: 0.3163636364 | BK20: 0.4015384615 | BL20: 0.464 | BM20: 0.5117647059 | BN20: 0.5494736842 | BO20: 0.58 | BP20: 0.6052173913 | BQ20: 0.6264 | BT20: 70 | BU20: 70 | BV20: 1.352818929 | BW20: =BV20*(BT20+BU20) -> 189.39465 | BX20: 474.3285 | BY20: =BW20/BX20 -> 0.399290049
B21: 90 | C21: 0.9235 | D21: 83.115 | E21: 265.97 | F21: 0.3124976501 | H21: 90 | I21: 1.592777778 | J21: 143.35 | K21: 419.2965 | L21: 0.3418821765 | N21: 90 | O21: 1.592777778 | P21: 143.35 | Q21: 377.332 | R21: 0.3799041693 | T21: 90 | U21: 0.4376645478 | V21: 0.4168759892 | W21: 0.3990232753 | X21: 0.3835255066 | Y21: 0.369945554 | Z21: 0.3579481719 | AA21: 0.3472719497 | AB21: 0.3377100456 | AC21: 0.3290966541 | AE21: 406.341 | AF21: 439.752 | AG21: 473.163 | AH21: 506.574 | AI21: 539.985 | AJ21: 573.396 | AK21: 606.807 | AL21: 640.218 | AM21: 673.629 | AO21: 1.616736818 | AP21: 1.410169615 | AQ21: 1.258687 | AR21: 1.142847353 | AS21: 1.051395 | AT21: 0.9773621429 | AU21: 0.9162045652 | AV21: 0.8648322 | AW21: 0.8210705556 | AY21: 0.7118181818 | AZ21: 0.6023076923 | BA21: 0.522 | BB21: 0.4605882353 | BC21: 0.4121052632 | BD21: 0.3728571429 | BE21: 0.3404347826 | BF21: 0.3132 | BG21: 0.29 | BI21: 0.1581818182 | BJ21: 0.2676923077 | BK21: 0.348 | BL21: 0.4094117647 | BM21: 0.4578947368 | BN21: 0.4971428571 | BO21: 0.5295652174 | BP21: 0.5568 | BQ21: 0.58 | BT21: 90 | BU21: 90 | BV21: 1.094580833 | BW21: 197.02455 | BX21: 523.2795 | BY21: 0.3765187629
B22: 110 | C22: 0.7780454545 | D22: 85.585 | E22: 270.63 | F22: 0.3162435798 | H22: 110 | I22: 1.360454545 | J22: 149.65 | K22: 442.4735 | L22: 0.3382123449 | N22: 110 | O22: 1.360454545 | P22: 149.65 | Q22: 397.628 | R22: 0.3763567958 | T22: 110 | U22: 0.4266367767 | V22: 0.4073670304 | W22: 0.3907321011 | X22: 0.376226169 | Y22: 0.3634651006 | Z22: 0.3521519316 | AA22: 0.3420534686 | AB22: 0.3329840429 | AC22: 0.324793991 | AE22: 421.881 | AF22: 455.292 | AG22: 488.703 | AH22: 522.114 | AI22: 555.525 | AJ22: 588.936 | AK22: 622.347 | AL22: 655.758 | AM22: 689.169 | AO22: 1.384538077 | AP22: 1.236473 | AQ22: 1.123246765 | AR22: 1.033857632 | AS22: 0.961495 | AT22: 0.9017171739 | AU22: 0.8515038 | AV22: 0.8087294444 | AW22: 0.771855 | AY22: 0.7361538462 | AZ22: 0.638 | BA22: 0.5629411765 | BB22: 0.5036842105 | BC22: 0.4557142857 | BD22: 0.4160869565 | BE22: 0.3828 | BF22: 0.3544444444 | BG22: 0.33 | BI22: 0.1338461538 | BJ22: 0.232 | BK22: 0.3070588235 | BL22: 0.3663157895 | BM22: 0.4142857143 | BN22: 0.4539130435 | BO22: 0.4872 | BP22: 0.5155555556 | BQ22: 0.54 | BT22: 110 | BU22: 110 | BV22: 0.9302475 | BW22: 204.65445 | BX22: 572.2305 | BY22: 0.3576433797
B23: 130 | C23: 0.6773461538 | D23: 88.055 | E23: 275.29 | F23: 0.3198626903 | H23: 130 | I23: 1.199615385 | J23: 155.95 | K23: 465.6505 | L23: 0.3349078332 | N23: 130 | O23: 1.199615385 | P23: 155.95 | Q23: 417.924 | R23: 0.3731539706 | T23: 130 | U23: 0.41639256 | V23: 0.3984857656 | W23: 0.3829519696 | X23: 0.3693487819 | Y23: 0.3573373434 | Z23: 0.3466537133 | AA23: 0.3370892493 | AB23: 0.3284768463 | AC23: 0.3206810896 | AE23: 437.421 | AF23: 470.832 | AG23: 504.243 | AH23: 537.654 | AI23: 571.065 | AJ23: 604.476 | AK23: 637.887 | AL23: 671.298 | AM23: 704.709 | AO23: 1.214259 | AP23: 1.103646176 | AQ23: 1.016320263 | AR23: 0.9456278571 | AS23: 0.8872297826 | AT23: 0.8381754 | AU23: 0.7963883333 | AV23: 0.760365 | AW23: 0.7289898387 | AY23: 0.754 | AZ23: 0.6652941176 | BA23: 0.5952631579 | BB23: 0.5385714286 | BC23: 0.4917391304 | BD23: 0.4524 | BE23: 0.4188888889 | BF23: 0.39 | BG23: 0.3648387097 | BI23: 0.116 | BJ23: 0.2047058824 | BK23: 0.2747368421 | BL23: 0.3314285714 | BM23: 0.3782608696 | BN23: 0.4176 | BO23: 0.4511111111 | BP23: 0.48 | BQ23: 0.5051612903 | BT23: 130 | BU23: 130 | BV23: 0.8164782692 | BW23: 212.28435 | BX23: 621.1815 | BY23: 0.3417428723
B24: 150 | C24: 0.6035 | D24: 90.525 | E24: 279.95 | F24: 0.3233613145 | H24: 150 | I24: 1.081666667 | J24: 162.25 | K24: 488.8275 | L24: 0.3319166782 | N24: 150 | O24: 1.081666667 | P24: 162.25 | Q24: 438.22 | R24: 0.3702478207 | T24: 150 | U24: 0.4068512521 | V24: 0.3901720288 | W24: 0.3756370447 | X24: 0.3628577859 | Y24: 0.3515342522 | Z24: 0.3414311082 | AA24: 0.3323611513 | AB24: 0.3241736043 | AC24: 0.3167456671 | AE24: 452.961 | AF24: 486.372 | AG24: 519.783 | AH24: 553.194 | AI24: 586.605 | AJ24: 620.016 | AK24: 653.427 | AL24: 686.838 | AM24: 720.249 | AO24: 1.084045588 | AP24: 0.9987828947 | AQ24: 0.9297607143 | AR24: 0.8727423913 | AS24: 0.824847 | AT24: 0.7840472222 | AU24: 0.748875 | AV24: 0.718241129 | AW24: 0.6913204545 | AY24: 0.7676470588 | AZ24: 0.6868421053 | BA24: 0.6214285714 | BB24: 0.5673913043 | BC24: 0.522 | BD24: 0.4833333333 | BE24: 0.45 | BF24: 0.4209677419 | BG24: 0.3954545455 | BI24: 0.1023529412 | BJ24: 0.1831578947 | BK24: 0.2485714286 | BL24: 0.3026086957 | BM24: 0.348 | BN24: 0.3866666667 | BO24: 0.42 | BP24: 0.4490322581 | BQ24: 0.4745454545 | BT24: 150 | BU24: 150 | BV24: 0.7330475 | BW24: 219.91425 | BX24: 670.1325 | BY24: 0.3281653255
B25: 170 | C25: 0.5470294118 | D25: 92.995 | E25: 284.61 | F25: 0.3267453709 | H25: 170 | I25: 0.9914705882 | J25: 168.55 | K25: 512.0045 | L25: 0.3291963254 | N25: 170 | O25: 0.9914705882 | P25: 168.55 | Q25: 458.516 | R25: 0.3675989497 | T25: 170 | U25: 0.3979429073 | V25: 0.3823731052 | W25: 0.3687468127 | X25: 0.3567215078 | Y25: 0.3460306903 | Z25: 0.3364638993 | AA25: 0.3278527192 | AB25: 0.3200607792 | AC25: 0.3129764783 | AE25: 468.501 | AF25: 501.912 | AG25: 535.323 | AH25: 568.734 | AI25: 602.145 | AJ25: 635.556 | AK25: 668.967 | AL25: 702.378 | AM25: 735.789 | AO25: 0.9812455263 | AP25: 0.9138935714 | AQ25: 0.858255 | AR25: 0.8115186 | AS25: 0.7717061111 | AT25: 0.737385 | AU25: 0.7074924194 | AV25: 0.6812231818 | AW25: 0.6579561429 | AY25: 0.7784210526 | AZ25: 0.7042857143 | BA25: 0.6430434783 | BB25: 0.5916 | BC25: 0.5477777778 | BD25: 0.51 | BE25: 0.4770967742 | BF25: 0.4481818182 | BG25: 0.4225714286 | BI25: 0.09157894737 | BJ25: 0.1657142857 | BK25: 0.2269565217 | BL25: 0.2784 | BM25: 0.3222222222 | BN25: 0.36 | BO25: 0.3929032258 | BP25: 0.4218181818 | BQ25: 0.4474285714 | BT25: 170 | BU25: 170 | BV25: 0.6692475 | BW25: 227.54415 | BX25: 719.0835 | BY25: 0.3164363388
B26: 190 | C26: 0.5024473684 | D26: 95.465 | E26: 289.27 | F26: 0.3300203962 | H26: 190 | I26: 0.9202631579 | J26: 174.85 | K26: 535.1815 | L26: 0.3267115922 | N26: 190 | O26: 0.9202631579 | P26: 174.85 | Q26: 478.812 | R26: 0.3651746406 | T26: 190 | U26: 0.3896065623 | V26: 0.3750426126 | W26: 0.3622453314 | X26: 0.3509116442 | Y26: 0.3408040506 | Z26: 0.3317337996 | AA26: 0.3235489922 | AB26: 0.316126006 | AC26: 0.3093632084 | AE26: 484.041 | AF26: 517.452 | AG26: 550.863 | AH26: 584.274 | AI26: 617.685 | AJ26: 651.096 | AK26: 684.507 | AL26: 717.918 | AM26: 751.329 | AO26: 0.8980264286 | AP26: 0.8437676087 | AQ26: 0.7981902 | AR26: 0.759365 | AS26: 0.725895 | AT26: 0.6967437097 | AU26: 0.6711259091 | AV26: 0.6484358571 | AW26: 0.6281987838 | AY26: 0.7871428571 | AZ26: 0.7186956522 | BA26: 0.6612 | BB26: 0.6122222222 | BC26: 0.57 | BD26: 0.5332258065 | BE26: 0.5009090909 | BF26: 0.4722857143 | BG26: 0.4467567568 | BI26: 0.08285714286 | BJ26: 0.1513043478 | BK26: 0.2088 | BL26: 0.2577777778 | BM26: 0.3 | BN26: 0.3367741935 | BO26: 0.3690909091 | BP26: 0.3977142857 | BQ26: 0.4232432432 | BT26: 190 | BU26: 190 | BV26: 0.6188790789 | BW26: 235.17405 | BX26: 768.0345 | BY26: 0.3062024557
B27: 220 | C27: 0.4507727273 | D27: 99.17 | E27: 296.26 | F27: 0.3347397556 | H27: 220 | I27: 0.8377272727 | J27: 184.3 | K27: 569.947 | L27: 0.3233634005 | N27: 220 | O27: 0.8377272727 | P27: 184.3 | Q27: 509.256 | R27: 0.361900498 | T27: 220 | U27: 0.3780595682 | V27: 0.3648368413 | W27: 0.3531529696 | X27: 0.3427540883 | Y27: 0.3334392624 | Z27: 0.325047375 | AA27: 0.3174477301 | AB27: 0.3105331963 | AC27: 0.3042151247 | AE27: 507.351 | AF27: 540.762 | AG27: 574.173 | AH27: 607.584 | AI27: 640.995 | AJ27: 674.406 | AK27: 707.817 | AL27: 741.228 | AM27: 774.639 | AO27: 0.79920375 | AP27: 0.7588073077 | AQ27: 0.7241817857 | AR27: 0.694173 | AS27: 0.6679153125 | AT27: 0.6447467647 | AU27: 0.6241525 | AV27: 0.6057260526 | AW27: 0.58914225 | AY27: 0.7975 | AZ27: 0.7361538462 | BA27: 0.6835714286 | BB27: 0.638 | BC27: 0.598125 | BD27: 0.5629411765 | BE27: 0.5316666667 | BF27: 0.5036842105 | BG27: 0.4785 | BI27: 0.0725 | BJ27: 0.1338461538 | BK27: 0.1864285714 | BL27: 0.232 | BM27: 0.271875 | BN27: 0.3070588235 | BO27: 0.3383333333 | BP27: 0.3663157895 | BQ27: 0.3915 | BT27: 220 | BU27: 220 | BV27: 0.5604975 | BW27: 246.6189 | BX27: 841.461 | BY27: 0.2930841715
B28: 250 | C28: 0.4115 | D28: 102.875 | E28: 303.25 | F28: 0.3392415499 | H28: 250 | I28: 0.775 | J28: 193.75 | K28: 604.7125 | L28: 0.3204001902 | N28: 250 | O28: 0.775 | P28: 193.75 | Q28: 539.7 | R28: 0.3589957384 | T28: 250 | U28: 0.3675270088 | V28: 0.3554745671 | W28: 0.3447700604 | X28: 0.3351993362 | Y28: 0.3265913248 | Z28: 0.3188077241 | AA28: 0.3117355124 | AB28: 0.3052814249 | AC28: 0.2993678167 | AE28: 530.661 | AF28: 564.072 | AG28: 597.483 | AH28: 630.894 | AI28: 664.305 | AJ28: 697.716 | AK28: 731.127 | AL28: 764.538 | AM28: 797.949 | AO28: 0.7223416667 | AP28: 0.691425 | AQ28: 0.6644975806 | AR28: 0.6408340909 | AS28: 0.619875 | AT28: 0.6011817568 | AU28: 0.5844057692 | AV28: 0.5692664634 | AW28: 0.5555354651 | AY28: 0.8055555556 | AZ28: 0.75 | BA28: 0.7016129032 | BB28: 0.6590909091 | BC28: 0.6214285714 | BD28: 0.5878378378 | BE28: 0.5576923077 | BF28: 0.5304878049 | BG28: 0.5058139535 | BI28: 0.06444444444 | BJ28: 0.12 | BK28: 0.1683870968 | BL28: 0.2109090909 | BM28: 0.2485714286 | BN28: 0.2821621622 | BO28: 0.3123076923 | BP28: 0.3395121951 | BQ28: 0.3641860465 | BT28: 250 | BU28: 250 | BV28: 0.5161275 | BW28: 258.06375 | BX28: 914.8875 | BY28: 0.2820715662
B29: 280 | C29: 0.3806428571 | D29: 106.58 | E29: 310.24 | F29: 0.3435404848 | H29: 280 | I29: 0.7257142857 | J29: 203.2 | K29: 639.478 | L29: 0.3177591723 | N29: 280 | O29: 0.7257142857 | P29: 203.2 | Q29: 570.144 | R29: 0.3564011899 | T29: 280 | U29: 0.3578808277 | V29: 0.3468553684 | W29: 0.3370166867 | X29: 0.3281829521 | Y29: 0.3202076744 | Z29: 0.3129715156 | AA29: 0.3063762779 | AB29: 0.300340421 | AC29: 0.2947956735 | AE29: 553.971 | AF29: 587.382 | AG29: 620.793 | AH29: 654.204 | AI29: 687.615 | AJ29: 721.026 | AK29: 754.437 | AL29: 787.848 | AM29: 821.259 | AO29: 0.660852 | AP29: 0.636676875 | AQ29: 0.6153458824 | AR29: 0.596385 | AS29: 0.57942 | AT29: 0.5641515 | AU29: 0.5503371429 | AV29: 0.5377786364 | AW29: 0.5263121739 | AY29: 0.812 | AZ29: 0.76125 | BA29: 0.7164705882 | BB29: 0.6766666667 | BC29: 0.6410526316 | BD29: 0.609 | BE29: 0.58 | BF29: 0.5536363636 | BG29: 0.5295652174 | BI29: 0.058 | BJ29: 0.10875 | BK29: 0.1535294118 | BL29: 0.1933333333 | BM29: 0.2289473684 | BN29: 0.261 | BO29: 0.29 | BP29: 0.3163636364 | BQ29: 0.3404347826 | BT29: 280 | BU29: 280 | BV29: 0.4812653571 | BW29: 269.5086 | BX29: 988.314 | BY29: 0.2726953175
B30: 310 | C30: 0.3557580645 | D30: 110.285 | E30: 317.23 | F30: 0.3476499701 | H30: 310 | I30: 0.6859677419 | J30: 212.65 | K30: 674.2435 | L30: 0.315390508 | N30: 310 | O30: 0.6859677419 | P30: 212.65 | Q30: 600.588 | R30: 0.3540696784 | T30: 310 | U30: 0.3490136519 | V30: 0.3388941561 | W30: 0.3298245001 | X30: 0.3216493681 | Y30: 0.3142426416 | Z30: 0.3075008464 | AA30: 0.3013382887 | AB30: 0.2956833934 | AC30: 0.2904759114 | AE30: 577.281 | AF30: 610.692 | AG30: 644.103 | AH30: 677.514 | AI30: 710.925 | AJ30: 744.336 | AK30: 777.747 | AL30: 811.158 | AM30: 844.569 | AO30: 0.6105422727 | AP30: 0.5913141429 | AQ30: 0.5741647297 | AR30: 0.5587742308 | AS30: 0.5448852439 | AT30: 0.5322882558 | AU30: 0.520811 | AV30: 0.5103105319 | AW30: 0.5006672449 | AY30: 0.8172727273 | AZ30: 0.7705714286 | BA30: 0.7289189189 | BB30: 0.6915384615 | BC30: 0.657804878 | BD30: 0.6272093023 | BE30: 0.5993333333 | BF30: 0.5738297872 | BG30: 0.5504081633 | BI30: 0.05272727273 | BJ30: 0.09942857143 | BK30: 0.1410810811 | BL30: 0.1784615385 | BM30: 0.212195122 | BN30: 0.2427906977 | BO30: 0.2706666667 | BP30: 0.2961702128 | BQ30: 0.3195918367 | BT30: 310 | BU30: 310 | BV30: 0.4531507258 | BW30: 280.95345 | BX30: 1061.7405 | BY30: 0.2646159302
B31: 340 | C31: 0.3352647059 | D31: 113.99 | E31: 324.22 | F31: 0.351582259 | H31: 340 | I31: 0.6532352941 | J31: 222.1 | K31: 709.009 | L31: 0.3132541336 | N31: 340 | O31: 0.6532352941 | P31: 222.1 | Q31: 631.032 | R31: 0.3519631334 | T31: 340 | U31: 0.3408347777 | V31: 0.3315183548 | W31: 0.3231347007 | X31: 0.3155504092 | Y31: 0.3086563566 | Z31: 0.3023624171 | AA31: 0.2965935008 | AB31: 0.2912865442 | AC31: 0.2863881947 | AE31: 600.591 | AF31: 634.002 | AG31: 667.413 | AH31: 700.824 | AI31: 734.235 | AJ31: 767.646 | AK31: 801.057 | AL31: 834.468 | AM31: 867.879 | AO31: 0.5686175 | AP31: 0.5531139474 | AQ31: 0.53916075 | AR31: 0.5265364286 | AS31: 0.5150597727 | AT31: 0.504581087 | AU31: 0.494975625 | AV31: 0.4861386 | AW31: 0.4779813462 | AY31: 0.8216666667 | AZ31: 0.7784210526 | BA31: 0.7395 | BB31: 0.7042857143 | BC31: 0.6722727273 | BD31: 0.6430434783 | BE31: 0.61625 | BF31: 0.5916 | BG31: 0.5688461538 | BI31: 0.04833333333 | BJ31: 0.09157894737 | BK31: 0.1305 | BL31: 0.1657142857 | BM31: 0.1977272727 | BN31: 0.2269565217 | BO31: 0.25375 | BP31: 0.2784 | BQ31: 0.3011538462 | BT31: 340 | BU31: 340 | BV31: 0.4299975 | BW31: 292.3983 | BX31: 1135.167 | BY31: 0.2575817479
B32: 370 | C32: 0.3180945946 | D32: 117.695 | E32: 331.21 | F32: 0.3553485704 | H32: 370 | I32: 0.6258108108 | J32: 231.55 | K32: 743.7745 | L32: 0.3113174759 | N32: 370 | O32: 0.6258108108 | P32: 231.55 | Q32: 661.476 | R32: 0.3500504931 | T32: 370 | U32: 0.3332670568 | V32: 0.3246656839 | W32: 0.3168964259 | X32: 0.3098441034 | Y32: 0.3034138566 | Z32: 0.2975268536 | AA32: 0.2921170425 | AB32: 0.2871286627 | AC32: 0.2825143151 | AE32: 623.901 | AF32: 657.312 | AG32: 690.723 | AH32: 724.134 | AI32: 757.545 | AJ32: 790.956 | AK32: 824.367 | AL32: 857.778 | AM32: 891.189 | AO32: 0.5331426923 | AP32: 0.5205040244 | AQ32: 0.5090410465 | AR32: 0.498597 | AS32: 0.4890418085 | AT32: 0.4802666327 | AU32: 0.4721797059 | AV32: 0.4647031132 | AW32: 0.4577702727 | AY32: 0.8253846154 | AZ32: 0.7851219512 | BA32: 0.7486046512 | BB32: 0.7153333333 | BC32: 0.684893617 | BD32: 0.6569387755 | BE32: 0.6311764706 | BF32: 0.6073584906 | BG32: 0.5852727273 | BI32: 0.04461538462 | BJ32: 0.08487804878 | BK32: 0.1213953488 | BL32: 0.1546666667 | BM32: 0.185106383 | BN32: 0.2130612245 | BO32: 0.2388235294 | BP32: 0.2626415094 | BQ32: 0.2847272727 | BT32: 370 | BU32: 370 | BV32: 0.4105988514 | BW32: 303.84315 | BX32: 1208.5935 | BY32: 0.2514022705
B33: 400 | C33: 0.3035 | D33: 121.4 | E33: 338.2 | F33: 0.3589591957 | H33: 400 | I33: 0.6025 | J33: 241 | K33: 778.54 | L33: 0.3095537802 | N33: 400 | O33: 0.6025 | P33: 241 | Q33: 691.92 | R33: 0.3483061626 | T33: 400 | U33: 0.3262444551 | V33: 0.3182823946 | W33: 0.311065455 | X33: 0.3044937146 | Y33: 0.2984843537 | Z33: 0.2929681455 | AA33: 0.2878867776 | AB33: 0.2831907823 | AC33: 0.2788379211 | AE33: 647.211 | AF33: 680.622 | AG33: 714.033 | AH33: 747.444 | AI33: 780.855 | AJ33: 814.266 | AK33: 847.677 | AL33: 881.088 | AM33: 914.499 | AO33: 0.5027357143 | AP33: 0.4923409091 | AQ33: 0.48285 | AR33: 0.47415 | AS33: 0.466146 | AT33: 0.4587576923 | AU33: 0.4519166667 | AV33: 0.4455642857 | AW33: 0.43965 | AY33: 0.8285714286 | AZ33: 0.7909090909 | BA33: 0.7565217391 | BB33: 0.725 | BC33: 0.696 | BD33: 0.6692307692 | BE33: 0.6444444444 | BF33: 0.6214285714 | BG33: 0.6 | BI33: 0.04142857143 | BJ33: 0.07909090909 | BK33: 0.1134782609 | BL33: 0.145 | BM33: 0.174 | BN33: 0.2007692308 | BO33: 0.2255555556 | BP33: 0.2485714286 | BQ33: 0.27 | BT33: 400 | BU33: 400 | BV33: 0.39411 | BW33: 315.288 | BX33: 1282.02 | BY33: 0.2459306407
L35: Title
L36: =B3&":"&C3&"; "&B4&":"&C4&"; "&B12&":"&C12&"; "&B13&":"&C13 -> Built in:N; Auto Defrost:N; Climate class:N; Chill:N

Sheet Compressor
E3: COP | F3: Pc
D4: c1 | E4: 6.652824 | F4: 4.117907
D5: c2 | E5: 0.192766 | F5: 0.152086
D6: c3 | E6: -0.19425 | F6: -0.028372
D7: c4 | E7: 0.002446 | F7: 0.002061
D8: c5 | E8: -0.0046 | F8: -0.000866
D9: c6 | E9: 0.002458 | F9: =0.06/46/46 -> 2.835538752e-05 | I9: =0.06/46/46 -> 2.835538752e-05
D10: c7 | E10: 1.3e-05 | F10: =-0.07/(-19)^3 -> 1.020556932e-05 | I10: =-0.07/(-19)^3 -> 1.020556932e-05
D11: c8 | E11: -3.3e-05 | F11: =-0.15/(46*(-19)^2) -> -9.032879682e-06 | I11: =-0.15/(46*(-19)^2) -> -9.032879682e-06
D12: c9 | E12: =-1.26/(-19*46*46) -> 3.134016516e-05 | F12: =-0.04/(-19*46*46) -> 9.94925878e-07 | I12: =0.04/(-19*46*46) -> -9.94925878e-07 | J12: =-1.26/(-19*46*46) -> 3.134016516e-05
D13: c10 | E13: =-1.14/(46^3) -> -1.171200789e-05 | F13: =-0.01/(46^3) -> -1.027369113e-07 | G13: =Pc_c10*Tc^3 -> -0.01 | J13: =-1.14/(46^3) -> -1.171200789e-05
A15: - | B15: Te | C15: -19
B16: Tc | C16: 46
B18: Pc | C18: =Pc_c1+Pc_c2*Te+Pc_c3*Tc+Pc_c4*Te^2+Pc_c5*Te*Tc+Pc_c6*Tc^2+Pc_c7*Te^3+Pc_c8*Tc*Te^2+Pc_c9*Te*Tc^2+Pc_c10*Tc^3 -> 1.214066
B19: Qc | C19: =COP_c1+COP_c2*Te+COP_c3*Tc+COP_c4*Te^2+COP_c5*Te*Tc+COP_c6*Tc^2+COP_c7*Te^3+COP_c8*Tc*Te^2+COP_c9*Te*Tc^2+COP_c10*Tc^3 -> 1.122139
B21: COP carnot | C21: =(Te+273.15)/((Tc-Te)) -> 3.91 | E21: =0.6*C21 -> 2.346
C22: =(-23.3+273.15)/((54.4--23.3)) -> 3.215572716
